Workbook

Sheet Results
A1: This spreadsheet will calculate the height of a groundwater mound beneath an stormwater infiltration BMP. More information can be found in the U.S. Geological Survey Scientific Investigations Report 2010-5102 "Simulation of groundwater mounding beneath hypothetical stormwater infiltration basins".
N2: Distance from center of infiltration BMP (m) | O2: Ground-water mounding (m)
A4: Go to the USGS report | N4: 0 | O4: =Model!F57-$B$12 -> 1.801208084
B5: Input Values | N5: 1 | O5: =Model!F58-$B$12 -> 1.800900828
A6: Recharge (infiltration) rate (m/day) | B6: 0.15 | C6: R | N6: 2.5 | O6: =Model!F59-$B$12 -> 1.797178138
A7: Specific yield, Sy (dimensionless) | B7: 0.07 | C7: Sy | N7: 5 | O7: =Model!F60-$B$12 -> 1.720512381
A8: Horizontal hydraulic conductivity, Kh (m/day) | B8: 0.00864 | C8: K | N8: 7.5 | O8: =Model!F61-$B$12 -> 0.9163014292
A9: 1/2 length of basin (x direction, in m) | B9: 7.5 | C9: x | N9: 10 | O9: =Model!F62-$B$12 -> 0.07951288092
A10: 1/2 width of basin (y direction, in m) | B10: 0.75 | C10: y | N10: 12.5 | O10: =Model!F63-$B$12 -> 0.004794129345
A11: Duration of infiltration period (days) | B11: 2 | C11: t | N11: 15 | O11: =Model!F64-$B$12 -> 0.001484609355
A12: Initial thickness of saturated zone (m) | B12: 10 | C12: hi(0) | N12: 17.5 | O12: =Model!F65-$B$12 -> 0.001428841368
N13: 20 | O13: =Model!F66-$B$12 -> 0.00142853529
A18: maximum groundwater mounding beneath center of basin at end of infiltration period | B18: =Model!F68-$B$12 -> -2.719449309 | C18: Δh(max)

Sheet Reference values
C2: Specific Yield
C3: Max | D3: Min | E3: Mean
B4: Clay | C4: =5/100 -> 0.05 | D4: 0 | E4: =2/100 -> 0.02
B5: Sandy clay | C5: =12/100 -> 0.12 | D5: =3/100 -> 0.03 | E5: =7/100 -> 0.07
B6: Silt | C6: =19/100 -> 0.19 | D6: =3/100 -> 0.03 | E6: =18/100 -> 0.18
B7: Fine sand | C7: =28/100 -> 0.28 | D7: =10/100 -> 0.1 | E7: =21/100 -> 0.21

Sheet ReadMe
A1: This spreadsheet solving the Hantush (1967) equation for ground-water mounding beneath an infiltration basin is made available to the general public as a convenience for those wishing to replicate values documented in the USGS Scientific Investigations Report 2010-5102 "Groundwater mounding beneath hypothetical stormwater infiltration basins" or to calculate values based on user-specified site conditions. Any changes made to the spreadsheet (other than values identified as user-specified) after transmission from the USGS could have unintended, undesirable consequences. These consequences could include, but may not be limited to: erroneous output, numerical instabilities, and violations of underlying assumptions that are inherent in results presented in the accompanying USGS published report. The USGS assumes no responsibility for the consequences of any changes made to the spreadsheet. If changes are made to the spreadsheet, the user is responsible for documenting the changes and justifying the results and conclusions.
A12: Cosmetic changes were made (with permission from the original author) to this spreadsheet in 2017 by Toronto Region Conservation Authority.

Sheet Model (hidden)
A1: Hantush's Solution for a rectangular infiltration basin to simulate mounding:
E12: ref: Hantush, M. ,1967, Growth and Decay of Groundwater Mounds in Response to Uniform Percolation,WRR v.3 no.1
G14: W = constant rate of percolation
G15: K = hydraulic conductivity
K17: =A27*G40/A26 -> 0.1882285714
A24: Input Values
A25: =Results!B6 -> 0.15 | B25: w | D25: Percolation Rate (meters/day)
A26: =Results!B7 -> 0.07 | B26: Sy | D26: Specific Yield | I26: .02 < S < .3
A27: =Results!B8 -> 0.00864 | B27: K | D27: Horizontal Hydraulic Conductivity (meters/day) | I27: K | J27: 10-1 - 10-3 | L27: silt, sandy silt, clayey sand
A28: =Results!B9 -> 7.5 | B28: l | D28: 1/2 length of basin (meters) | J28: 10-2 - 1 | L28: sily sand fine sand
A29: =Results!B10 -> 0.75 | B29: a | D29: 1/2 width of basin (meters) | J29: 1 - 100 | L29: well sorted sand
J30: 10 - 1000 | L30: gravel
A31: =0 -> 0 | B31: x | D31: x coordinate (meters)
A32: 0 | B32: y | D32: y coordinate (meters)
A33: =Results!B11 -> 2 | B33: t | D33: time (days)
A35: 3.05 | B35: hi(0) | D35: initial head (meters) | H35: h(te) - h
B36: h(te) | D36: head at end of simulation (meters) | H36: =A36-B47 -> -3.84657449
D38: constant of linearization
G40: =0.5*(A35+A36) -> 1.525
A41: Output
B42: Simpson | D42: Trapezoid | G42: note: for manual calculations (that do not employ the macros associated with the "Re-Calculate Now" button on the Results worksheet), one needs to iterate between solution given in cell b47 and the value for the head needed for linearization cell a36. Result only valid for X,Y obs point in G48, G49
A43: h2-hi2 = | B43: =((Model!$A$25/(2*Model!$A$27))*(Model!$K$17*Model!$A$33))*SUM(Model!B50:E50) -> 5.493635309 | C43: m2 | D43: =((Model!$A$25/(2*Model!$A$27))*(Model!$K$17*Model!$A$33))*SUM(Model!B51:E51) -> 5.493635174 | E43: m2
A45: h-hi= | B45: =SQRT(B43+(Model!$A$35)^2)-Model!$A$35 -> 0.7965744903 | C45: m | D45: =SQRT(D43+(Model!$A$35)^2)-Model!$A$35 -> 0.7965744727 | E45: m
A47: h= | B47: =B45+Model!A35 -> 3.84657449 | C47: m | D47: =D45+Model!A35 -> 3.846574473 | E47: m | G47: Constants and variables needed for calculation
A48: Integral evaluation: | C48: 0.001 | D48: dt | E48: fixed | G48: =Model!B67 -> 0 | H48: x | I48: Location of observation point, x direction, meters
B49: PS1 | C49: PS2 | D49: PS3 | E49: PS4 | G49: 0 | H49: y | I49: Location of observation point, y direction, meters
A50: Simpson | B50: ='pS1'!L1014 -> 0.4202781111 | C50: ='pS2'!L1014 -> 0.4202781111 | D50: ='ps3'!L1014 -> 0.4202781111 | E50: ='pS4'!L1014 -> 0.4202781111 | G50: =(Results!B8*(0.5*(Results!B12+Model!G51)))/Results!B7 -> 1.34545807 | H50: ν | I50: average linear velocity, used in integration
A51: Trapezoidal | B51: ='pS1'!H1013 -> 0.4202781007 | C51: ='pS2'!H1013 -> 0.4202781007 | D51: ='ps3'!H1013 -> 0.4202781007 | E51: ='pS4'!H1013 -> 0.4202781007 | G51: =Model!C67 -> 11.80140391 | H51: h(te) | I51: estimated head
G52: =((Results!$B$6/(2*Results!$B$8))*(Model!G50*Results!$B$11))*SUM(Model!B50:E50) -> 39.26851224 | H52: h2-hi2
A53: Calculations based on values input in Results worksheet are below | G53: =(SQRT(Model!$G$52+Results!$B$12^2))-Results!$B$12 -> 1.801208084 | H53: h-hi | I53: calculated head
G54: =G53+Results!B12 -> 11.80120808 | H54: h
C56: Hest | D56: Hcalc | E56: Hcalc - Hest | F56: Hfinal
B57: =Results!N4 -> 0 | C57: 11.80140391 | D57: =Model!$G$54 -> 11.80120808 | E57: =D57-C57 -> -0.0001958276024 | F57: 11.80120808 | G57: 10.497 | H57: 20.497
B58: =Results!N5 -> 1 | C58: 11.80109779 | D58: =Model!$G$54 -> 11.80120808 | E58: =D58-C58 -> 0.0001102949272 | F58: 11.80090083 | G58: 10.173 | H58: 20.173
B59: =Results!N6 -> 2.5 | C59: 11.79737995 | D59: =Model!$G$54 -> 11.80120808 | E59: 0.003828135589 | F59: 11.79717814
B60: =Results!N7 -> 5 | C60: 11.72067505 | D60: =Model!$G$54 -> 11.80120808 | E60: 0.08053303434 | F60: 11.72051238
B61: =Results!N8 -> 7.5 | C61: 10.91632367 | D61: =Model!$G$54 -> 11.80120808 | E61: 0.8848844163 | F61: 10.91630143
B62: =Results!N9 -> 10 | C62: 10.07951306 | D62: =Model!$G$54 -> 11.80120808 | E62: 1.721695024 | F62: 10.07951288
B63: =Results!N10 -> 12.5 | C63: 10.00479415 | D63: =Model!$G$54 -> 11.80120808 | E63: 1.796413938 | F63: 10.00479413
B64: =Results!N11 -> 15 | C64: 10.00071434 | D64: =Model!$G$54 -> 11.80120808 | E64: 1.800493747 | F64: 10.00148461
B65: =Results!N12 -> 17.5 | C65: 10.00071429 | D65: =Model!$G$54 -> 11.80120808 | E65: 1.800493798 | F65: 10.00142884
B66: =Results!N13 -> 20 | C66: 10.00091429 | D66: =Model!$G$54 -> 11.80120808 | E66: 1.800293798 | F66: 10.00142854
B67: =Results!O14 -> 0 | C67: 11.80140391 | D67: =Model!$G$54 -> 11.80120808 | E67: -0.0001958276024 | F67: 11.80120808
B68: 0 | C68: 7.281103579 | D68: =Model!$G$54 -> 11.80120808 | E68: =D68-C68 -> 4.520104504 | F68: 7.280550691

Sheet pS1 (hidden)
A10: a | B10: =(Results!$B$9+Model!$G$48)/(SQRT(4*Model!$G$50*Results!B$11)) -> 2.286026108
A11: b | B11: =(Results!$B$10+Model!$G$49)/(SQRT(4*Model!$G$50*Results!B$11)) -> 0.2286026108
A12: t | B12: erf(a/sqrt(t)) | D12: erf(b/sqrt(t)) | F12: integrand | H12: trapezoidal integral O(h^2) | I12: Simpson integral O(h^4) | J12: kount | L12: Simpson total Sum
A13: 0 | B13: 1 | D13: 1 | F13: =B13*D13 -> 1 | H13: 0 | I13: 0
A14: =Model!$C$48 -> 0.001 | B14: =ERF($B$10/SQRT(A14)) -> 1 | D14: =ERF($B$11/SQRT(A14)) -> 1 | F14: 1 | H14: =0.5*(F14+F13)*(A14-A13)+H13 -> 0.001 | J14: 1
A15: =A14+Model!$C$48 -> 0.002 | B15: =ERF($B$10/SQRT(A15)) -> 1 | D15: =ERF($B$11/SQRT(A15)) -> 1 | F15: 1 | H15: 0.002 | J15: =IF(J14=1,0,1) -> 0
A16: =A15+Model!$C$48 -> 0.003 | B16: =ERF($B$10/SQRT(A16)) -> 1 | D16: =ERF($B$11/SQRT(A16)) -> 0.9999999964 | F16: 0.9999999964 | H16: 0.002999999998 | I16: =(I13+((A16-A15)/3)*(F13+4*F14+2*F15))*J16 -> 0.002333333333 | J16: 1 | L16: =IF(J16=1,I16,I15) -> 0.002333333333
A17: =A16+Model!$C$48 -> 0.004 | B17: 1 | D17: 0.9999996807 | F17: 0.9999996807 | H17: 0.003999999837 | I17: =(I15+((A17-A16)/3)*(4*F15+2*F16))*J17 -> 0 | J17: 0 | L17: =IF(J17=1,I17,I16) -> 0.002333333333
A18: =A17+Model!$C$48 -> 0.005 | B18: 1 | D18: 0.9999951703 | F18: 0.9999951703 | H18: 0.004999997262 | I18: 0.004333333116 | J18: 1 | L18: 0.004333333116
A19: =A18+Model!$C$48 -> 0.006 | B19: 1 | D19: 0.9999700299 | F19: 0.9999700299 | H19: 0.005999979862 | I19: 0 | J19: 0 | L19: 0.004333333116
A20: =A19+Model!$C$48 -> 0.007 | B20: 1 | D20: 0.9998884956 | F20: 0.9998884956 | H20: 0.006999909125 | I20: 0.006333306696 | J20: 1 | L20: 0.006333306696
A21: =A20+Model!$C$48 -> 0.008 | B21: 1 | D21: 0.9996991008 | F21: 0.9996991008 | H21: 0.007999702923 | I21: 0 | J21: 0 | L21: 0.006333306696
A22: =A21+Model!$C$48 -> 0.009 | B22: 1 | D22: 0.9993451269 | F22: 0.9993451269 | H22: 0.008999225037 | I22: 0.008332957424 | J22: 1 | L22: 0.008332957424
A23: =A22+Model!$C$48 -> 0.01 | B23: 1 | D23: 0.9987747204 | F23: 0.9987747204 | H23: 0.009998284961 | I23: 0 | J23: 0 | L23: 0.008332957424
A24: =A23+Model!$C$48 -> 0.011 | B24: 1 | D24: 0.9979471439 | F24: 0.9979471439 | H24: 0.01099664589 | I24: 0.01033126741 | J24: 1 | L24: 0.01033126741
A25: =A24+Model!$C$48 -> 0.012 | B25: 1 | D25: 0.996835063 | F25: 0.996835063 | H25: 0.011994037 | I25: 0 | J25: 0 | L25: 0.01033126741
A26: =A25+Model!$C$48 -> 0.013 | B26: 1 | D26: 0.9954241174 | F26: 0.9954241174 | H26: 0.01299016659 | I26: 0.01232642031 | J26: 1 | L26: 0.01232642031
A27: =A26+Model!$C$48 -> 0.014 | B27: 1 | D27: 0.9937110701 | F27: 0.9937110701 | H27: 0.01398473418 | I27: 0 | J27: 0 | L27: 0.01232642031
A28: =A27+Model!$C$48 -> 0.015 | B28: 1 | D28: 0.9917014575 | F28: 0.9917014575 | H28: 0.01497744044 | I28: 0.01431612651 | J28: 1 | L28: 0.01431612651
A29: =A28+Model!$C$48 -> 0.016 | B29: 1 | D29: 0.9894072717 | F29: 0.9894072717 | H29: 0.01596799481 | I29: 0 | J29: 0 | L29: 0.01431612651
A30: =A29+Model!$C$48 -> 0.017 | B30: 1 | D30: 0.9868449299 | F30: 0.9868449299 | H30: 0.01695612091 | I30: 0.01629799997 | J30: 1 | L30: 0.01629799997
A31: =A30+Model!$C$48 -> 0.018 | B31: 1 | D31: 0.9840336177 | F31: 0.9840336177 | H31: 0.01794156018 | I31: 0 | J31: 0 | L31: 0.01629799997
A32: =A31+Model!$C$48 -> 0.019 | B32: 1 | D32: 0.9809940016 | F32: 0.9809940016 | H32: 0.01892407399 | I32: 0.01826981562 | J32: 1 | L32: 0.01826981562
A33: =A32+Model!$C$48 -> 0.02 | B33: 1 | D33: 0.9777472687 | F33: 0.9777472687 | H33: 0.01990344463 | I33: 0 | J33: 0 | L33: 0.01826981562
A34: =A33+Model!$C$48 -> 0.021 | B34: 1 | D34: 0.9743144356 | F34: 0.9743144356 | H34: 0.02087947548 | I34: 0.02022963913 | J34: 1 | L34: 0.02022963913
A35: =A34+Model!$C$48 -> 0.022 | B35: 1 | D35: 0.9707158702 | F35: 0.9707158702 | H35: 0.02185199063 | I35: 0 | J35: 0 | L35: 0.02022963913
A36: =A35+Model!$C$48 -> 0.023 | B36: 1 | D36: 0.9669709786 | F36: 0.9669709786 | H36: 0.02282083406 | I36: 0.02217586896 | J36: 1 | L36: 0.02217586896
A37: =A36+Model!$C$48 -> 0.024 | B37: 1 | D37: 0.9630980128 | F37: 0.9630980128 | H37: 0.02378586855 | I37: 0 | J37: 0 | L37: 0.02217586896
A38: =A37+Model!$C$48 -> 0.025 | B38: 1 | D38: 0.9591139691 | F38: 0.9591139691 | H38: 0.02474697454 | I38: 0.02410722894 | J38: 1 | L38: 0.02410722894
A39: =A38+Model!$C$48 -> 0.026 | B39: 1 | D39: 0.9550345507 | F39: 0.9550345507 | H39: 0.0257040488 | I39: 0 | J39: 0 | L39: 0.02410722894
A40: =A39+Model!$C$48 -> 0.027 | B40: 1 | D40: 0.9508741749 | F40: 0.9508741749 | H40: 0.02665700317 | I40: 0.02602273727 | J40: 1 | L40: 0.02602273727
A41: =A40+Model!$C$48 -> 0.028 | B41: 1 | D41: 0.94664601 | F41: 0.94664601 | H41: 0.02760576326 | I41: 0 | J41: 0 | L41: 0.02602273727
A42: =A41+Model!$C$48 -> 0.029 | B42: 1 | D42: 0.9423620332 | F42: 0.9423620332 | H42: 0.02855026728 | I42: 0.02792166684 | J42: 1 | L42: 0.02792166684
A43: =A42+Model!$C$48 -> 0.03 | B43: 1 | D43: 0.9380330987 | F43: 0.9380330987 | H43: 0.02949046485 | I43: 0 | J43: 0 | L43: 0.02792166684
A44: =A43+Model!$C$48 -> 0.031 | B44: 1 | D44: 0.933669013 | F44: 0.933669013 | H44: 0.0304263159 | I44: 0.02980350495 | J44: 1 | L44: 0.02980350495
A45: =A44+Model!$C$48 -> 0.032 | B45: 1 | D45: 0.9292786123 | F45: 0.9292786123 | H45: 0.03135778972 | I45: 0 | J45: 0 | L45: 0.02980350495
A46: =A45+Model!$C$48 -> 0.033 | B46: 1 | D46: 0.9248698388 | F46: 0.9248698388 | H46: 0.03228486394 | I46: 0.03166791604 | J46: 1 | L46: 0.03166791604
A47: =A46+Model!$C$48 -> 0.034 | B47: 1 | D47: 0.9204498156 | F47: 0.9204498156 | H47: 0.03320752377 | I47: 0 | J47: 0 | L47: 0.03166791604
A48: =A47+Model!$C$48 -> 0.035 | B48: 1 | D48: 0.9160249174 | F48: 0.9160249174 | H48: 0.03412576113 | I48: 0.03351470904 | J48: 1 | L48: 0.03351470904
A49: =A48+Model!$C$48 -> 0.036 | B49: 1 | D49: 0.9116008378 | F49: 0.9116008378 | H49: 0.03503957401 | I49: 0 | J49: 0 | L49: 0.03351470904
A50: =A49+Model!$C$48 -> 0.037 | B50: 1 | D50: 0.9071826512 | F50: 0.9071826512 | H50: 0.03594896576 | I50: 0.03534380949 | J50: 1 | L50: 0.03534380949
A51: =A50+Model!$C$48 -> 0.038 | B51: 1 | D51: 0.9027748709 | F51: 0.9027748709 | H51: 0.03685394452 | I51: 0 | J51: 0 | L51: 0.03534380949
A52: =A51+Model!$C$48 -> 0.039 | B52: 1 | D52: 0.8983815021 | F52: 0.8983815021 | H52: 0.0377545227 | I52: 0.03715523627 | J52: 1 | L52: 0.03715523627
A53: =A52+Model!$C$48 -> 0.04 | B53: 1 | D53: 0.8940060908 | F53: 0.8940060908 | H53: 0.0386507165 | I53: 0 | J53: 0 | L53: 0.03715523627
A54: =A53+Model!$C$48 -> 0.041 | B54: 1 | D54: 0.889651768 | F54: 0.889651768 | H54: 0.03954254543 | I54: 0.03894908233 | J54: 1 | L54: 0.03894908233
A55: =A54+Model!$C$48 -> 0.042 | B55: 1 | D55: 0.8853212907 | F55: 0.8853212907 | H55: 0.04043003196 | I55: 0 | J55: 0 | L55: 0.03894908233
A56: =A55+Model!$C$48 -> 0.043 | B56: 1 | D56: 0.8810170783 | F56: 0.8810170783 | H56: 0.04131320114 | I56: 0.04072549888 | J56: 1 | L56: 0.04072549888
A57: =A56+Model!$C$48 -> 0.044 | B57: 1 | D57: 0.8767412464 | F57: 0.8767412464 | H57: 0.04219208031 | I57: 0 | J57: 0 | L57: 0.04072549888
A58: =A57+Model!$C$48 -> 0.045 | B58: 1 | D58: 0.8724956366 | F58: 0.8724956366 | H58: 0.04306669875 | I58: 0.04248468249 | J58: 1 | L58: 0.04248468249
A59: =A58+Model!$C$48 -> 0.046 | B59: 1 | D59: 0.8682818444 | F59: 0.8682818444 | H59: 0.04393708749 | I59: 0 | J59: 0 | L59: 0.04248468249
A60: =A59+Model!$C$48 -> 0.047 | B60: 1 | D60: 0.8641012437 | F60: 0.8641012437 | H60: 0.04480327903 | I60: 0.04422686456 | J60: 1 | L60: 0.04422686456
A61: =A60+Model!$C$48 -> 0.048 | B61: 1 | D61: 0.8599550091 | F61: 0.8599550091 | H61: 0.04566530716 | I61: 0 | J61: 0 | L61: 0.04422686456
A62: =A61+Model!$C$48 -> 0.049 | B62: 1 | D62: 0.8558441361 | F62: 0.8558441361 | H62: 0.04652320673 | I62: 0.0459523029 | J62: 1 | L62: 0.0459523029
A63: =A62+Model!$C$48 -> 0.05 | B63: 1 | D63: 0.8517694597 | F63: 0.8517694597 | H63: 0.04737701353 | I63: 0 | J63: 0 | L63: 0.0459523029
A64: =A63+Model!$C$48 -> 0.051 | B64: 1 | D64: 0.8477316703 | F64: 0.8477316703 | H64: 0.04822676409 | I64: 0.04766127472 | J64: 1 | L64: 0.04766127472
A65: =A64+Model!$C$48 -> 0.052 | B65: 1 | D65: 0.8437313289 | F65: 0.8437313289 | H65: 0.04907249559 | I65: 0 | J65: 0 | L65: 0.04766127472
A66: =A65+Model!$C$48 -> 0.053 | B66: 1 | D66: 0.8397688806 | F66: 0.8397688806 | H66: 0.0499142457 | I66: 0.04935407116 | J66: 1 | L66: 0.04935407116
A67: =A66+Model!$C$48 -> 0.054 | B67: 1 | D67: 0.8358446663 | F67: 0.8358446663 | H67: 0.05075205247 | I67: 0 | J67: 0 | L67: 0.04935407116
A68: =A67+Model!$C$48 -> 0.055 | B68: 1 | D68: 0.8319589338 | F68: 0.8319589338 | H68: 0.05158595427 | I68: 0.05103099278 | J68: 1 | L68: 0.05103099278
A69: =A68+Model!$C$48 -> 0.056 | B69: 1 | D69: 0.8281118478 | F69: 0.8281118478 | H69: 0.05241598966 | I69: 0 | J69: 0 | L69: 0.05103099278
A70: =A69+Model!$C$48 -> 0.057 | B70: 1 | D70: 0.8243034983 | F70: 0.8243034983 | H70: 0.05324219734 | I70: 0.05269234593 | J70: 1 | L70: 0.05269234593
A71: =A70+Model!$C$48 -> 0.058 | B71: 1 | D71: 0.8205339092 | F71: 0.8205339092 | H71: 0.05406461604 | I71: 0 | J71: 0 | L71: 0.05269234593
A72: =A71+Model!$C$48 -> 0.059 | B72: 1 | D72: 0.8168030451 | F72: 0.8168030451 | H72: 0.05488328452 | I72: 0.05433843986 | J72: 1 | L72: 0.05433843986
A73: =A72+Model!$C$48 -> 0.06 | B73: 1 | D73: 0.813110818 | F73: 0.813110818 | H73: 0.05569824145 | I73: 0 | J73: 0 | L73: 0.05433843986
A74: =A73+Model!$C$48 -> 0.061 | B74: 1 | D74: 0.8094570931 | F74: 0.8094570931 | H74: 0.0565095254 | I74: 0.05596958447 | J74: 1 | L74: 0.05596958447
A75: =A74+Model!$C$48 -> 0.062 | B75: 1 | D75: 0.8058416941 | F75: 0.8058416941 | H75: 0.0573171748 | I75: 0 | J75: 0 | L75: 0.05596958447
A76: =A75+Model!$C$48 -> 0.063 | B76: 1 | D76: 0.802264408 | F76: 0.802264408 | H76: 0.05812122785 | I76: 0.05758608839 | J76: 1 | L76: 0.05758608839
A77: =A76+Model!$C$48 -> 0.064 | B77: 1 | D77: 0.7987249895 | F77: =B77*D77 -> 0.7987249895 | H77: 0.05892172255 | I77: 0 | J77: 0 | L77: 0.05758608839
A78: =A77+Model!$C$48 -> 0.065 | B78: 1 | D78: 0.7952231649 | F78: 0.7952231649 | H78: =0.5*(F78+F77)*(A78-A77)+H77 -> 0.05971869662 | I78: 0.05918825759 | J78: 1 | L78: 0.05918825759
A79: =A78+Model!$C$48 -> 0.066 | B79: 1 | D79: 0.7917586354 | F79: 0.7917586354 | H79: 0.06051218752 | I79: 0 | J79: =IF(J78=1,0,1) -> 0 | L79: 0.05918825759
A80: =A79+Model!$C$48 -> 0.067 | B80: =ERF($B$10/SQRT(A80)) -> 1 | D80: =ERF($B$11/SQRT(A80)) -> 0.7883310805 | F80: 0.7883310805 | H80: 0.06130223238 | I80: 0.06077639424 | J80: 1 | L80: 0.06077639424
A81: =A80+Model!$C$48 -> 0.068 | B81: 1 | D81: 0.7849401609 | F81: 0.7849401609 | H81: 0.062088868 | I81: =(I79+((A81-A80)/3)*(4*F79+2*F80))*J81 -> 0 | J81: 0 | L81: =IF(J81=1,I81,I80) -> 0.06077639424
A82: =A81+Model!$C$48 -> 0.069 | B82: 1 | D82: 0.7815855208 | F82: 0.7815855208 | H82: 0.06287213084 | I82: 0.06235079578 | J82: 1 | L82: 0.06235079578
A83: =A82+Model!$C$48 -> 0.07 | B83: 1 | D83: 0.7782667905 | F83: 0.7782667905 | H83: 0.063652057 | I83: 0 | J83: 0 | L83: 0.06235079578
A84: =A83+Model!$C$48 -> 0.071 | B84: 1 | D84: 0.7749835884 | F84: 0.7749835884 | H84: 0.06442868219 | I84: 0.06391175434 | J84: 1 | L84: 0.06391175434
A85: =A84+Model!$C$48 -> 0.072 | B85: 1 | D85: 0.771735523 | F85: 0.771735523 | H85: 0.06520204174 | I85: 0 | J85: 0 | L85: 0.06391175434
A86: =A85+Model!$C$48 -> 0.073 | B86: 1 | D86: 0.7685221942 | F86: 0.7685221942 | H86: 0.0659721706 | I86: 0.06545955614 | J86: 1 | L86: 0.06545955614
A87: =A86+Model!$C$48 -> 0.074 | B87: 1 | D87: 0.7653431956 | F87: 0.7653431956 | H87: 0.0667391033 | I87: 0 | J87: 0 | L87: 0.06545955614
A88: =A87+Model!$C$48 -> 0.075 | B88: 1 | D88: 0.7621981149 | F88: 0.7621981149 | H88: 0.06750287395 | I88: 0.06699448119 | J88: 1 | L88: 0.06699448119
A89: =A88+Model!$C$48 -> 0.076 | B89: 1 | D89: 0.759086536 | F89: 0.759086536 | H89: 0.06826351628 | I89: 0 | J89: 0 | L89: 0.06699448119
A90: =A89+Model!$C$48 -> 0.077 | B90: 1 | D90: 0.7560080397 | F90: 0.7560080397 | H90: 0.06902106357 | I90: 0.06851680304 | J90: 1 | L90: 0.06851680304
A91: =A90+Model!$C$48 -> 0.078 | B91: 1 | D91: 0.7529622047 | F91: 0.7529622047 | H91: 0.06977554869 | I91: 0 | J91: 0 | L91: 0.06851680304
A92: =A91+Model!$C$48 -> 0.079 | B92: 1 | D92: 0.7499486086 | F92: 0.7499486086 | H92: 0.0705270041 | I92: 0.07002678856 | J92: 1 | L92: 0.07002678856
A93: =A92+Model!$C$48 -> 0.08 | B93: 1 | D93: 0.7469668287 | F93: 0.7469668287 | H93: 0.07127546181 | I93: 0 | J93: 0 | L93: 0.07002678856
A94: =A93+Model!$C$48 -> 0.081 | B94: 1 | D94: 0.7440164427 | F94: 0.7440164427 | H94: 0.07202095345 | I94: 0.07152469792 | J94: 1 | L94: 0.07152469792
A95: =A94+Model!$C$48 -> 0.082 | B95: 1 | D95: 0.7410970293 | F95: 0.7410970293 | H95: 0.07276351019 | I95: 0 | J95: 0 | L95: 0.07152469792
A96: =A95+Model!$C$48 -> 0.083 | B96: 1 | D96: 0.7382081687 | F96: 0.7382081687 | H96: 0.07350316279 | I96: 0.07301078453 | J96: 1 | L96: 0.07301078453
A97: =A96+Model!$C$48 -> 0.084 | B97: 1 | D97: 0.7353494433 | F97: 0.7353494433 | H97: 0.07423994159 | I97: 0 | J97: 0 | L97: 0.07301078453
A98: =A97+Model!$C$48 -> 0.085 | B98: 1 | D98: 0.7325204382 | F98: 0.7325204382 | H98: 0.07497387653 | I98: 0.07448529505 | J98: 1 | L98: 0.07448529505
A99: =A98+Model!$C$48 -> 0.086 | B99: 1 | D99: 0.7297207411 | F99: 0.7297207411 | H99: 0.07570499712 | I99: 0 | J99: 0 | L99: 0.07448529505
A100: =A99+Model!$C$48 -> 0.087 | B100: 1 | D100: 0.7269499434 | F100: 0.7269499434 | H100: 0.07643333246 | I100: 0.07594846947 | J100: 1 | L100: 0.07594846947
A101: =A100+Model!$C$48 -> 0.088 | B101: 1 | D101: 0.7242076397 | F101: 0.7242076397 | H101: 0.07715891126 | I101: 0 | J101: 0 | L101: 0.07594846947
A102: =A101+Model!$C$48 -> 0.089 | B102: 1 | D102: 0.721493429 | F102: 0.721493429 | H102: 0.07788176179 | I102: 0.07740054115 | J102: 1 | L102: 0.07740054115
A103: =A102+Model!$C$48 -> 0.09 | B103: 1 | D103: 0.7188069138 | F103: 0.7188069138 | H103: 0.07860191196 | I103: 0 | J103: 0 | L103: 0.07740054115
A104: =A103+Model!$C$48 -> 0.091 | B104: 1 | D104: 0.7161477015 | F104: 0.7161477015 | H104: 0.07931938927 | I104: 0.078841737 | J104: 1 | L104: 0.078841737
A105: =A104+Model!$C$48 -> 0.092 | B105: 1 | D105: 0.7135154036 | F105: 0.7135154036 | H105: 0.08003422082 | I105: 0 | J105: 0 | L105: 0.078841737
A106: =A105+Model!$C$48 -> 0.093 | B106: 1 | D106: 0.7109096364 | F106: 0.7109096364 | H106: 0.08074643334 | I106: 0.08027227754 | J106: 1 | L106: 0.08027227754
A107: =A106+Model!$C$48 -> 0.094 | B107: 1 | D107: 0.708330021 | F107: 0.708330021 | H107: 0.08145605317 | I107: 0 | J107: 0 | L107: 0.08027227754
A108: =A107+Model!$C$48 -> 0.095 | B108: 1 | D108: 0.7057761832 | F108: 0.7057761832 | H108: 0.08216310627 | I108: 0.08169237706 | J108: 1 | L108: 0.08169237706
A109: =A108+Model!$C$48 -> 0.096 | B109: 1 | D109: 0.703247754 | F109: 0.703247754 | H109: 0.08286761824 | I109: 0 | J109: 0 | L109: 0.08169237706
A110: =A109+Model!$C$48 -> 0.097 | B110: 1 | D110: 0.7007443693 | F110: 0.7007443693 | H110: 0.0835696143 | I110: 0.08310224381 | J110: 1 | L110: 0.08310224381
A111: =A110+Model!$C$48 -> 0.098 | B111: 1 | D111: 0.6982656701 | F111: 0.6982656701 | H111: 0.08426911932 | I111: 0 | J111: 0 | L111: 0.08310224381
A112: =A111+Model!$C$48 -> 0.099 | B112: 1 | D112: 0.6958113024 | F112: 0.6958113024 | H112: 0.08496615781 | I112: 0.08450208008 | J112: 1 | L112: 0.08450208008
A113: =A112+Model!$C$48 -> 0.1 | B113: 1 | D113: 0.6933809174 | F113: 0.6933809174 | H113: 0.08566075392 | I113: 0 | J113: 0 | L113: 0.08450208008
A114: =A113+Model!$C$48 -> 0.101 | B114: 1 | D114: 0.6909741715 | F114: 0.6909741715 | H114: 0.08635293146 | I114: 0.08589208243 | J114: 1 | L114: 0.08589208243
A115: =A114+Model!$C$48 -> 0.102 | B115: 1 | D115: 0.6885907264 | F115: 0.6885907264 | H115: 0.08704271391 | I115: 0 | J115: 0 | L115: 0.08589208243
A116: =A115+Model!$C$48 -> 0.103 | B116: 1 | D116: 0.6862302486 | F116: 0.6862302486 | H116: 0.0877301244 | I116: 0.08727244181 | J116: 1 | L116: 0.08727244181
A117: =A116+Model!$C$48 -> 0.104 | B117: 1 | D117: 0.6838924099 | F117: 0.6838924099 | H117: 0.08841518573 | I117: 0 | J117: 0 | L117: 0.08727244181
A118: =A117+Model!$C$48 -> 0.105 | B118: 1 | D118: 0.6815768874 | F118: 0.6815768874 | H118: 0.08909792038 | I118: 0.08864334375 | J118: 1 | L118: 0.08864334375
A119: =A118+Model!$C$48 -> 0.106 | B119: 1 | D119: 0.6792833629 | F119: 0.6792833629 | H119: 0.0897783505 | I119: 0 | J119: 0 | L119: 0.08864334375
A120: =A119+Model!$C$48 -> 0.107 | B120: 1 | D120: 0.6770115236 | F120: 0.6770115236 | H120: 0.09045649795 | I120: 0.09000496851 | J120: 1 | L120: 0.09000496851
A121: =A120+Model!$C$48 -> 0.108 | B121: 1 | D121: 0.6747610616 | F121: 0.6747610616 | H121: 0.09113238424 | I121: 0 | J121: 0 | L121: 0.09000496851
A122: =A121+Model!$C$48 -> 0.109 | B122: 1 | D122: 0.6725316738 | F122: 0.6725316738 | H122: 0.09180603061 | I122: 0.09135749125 | J122: 1 | L122: 0.09135749125
A123: =A122+Model!$C$48 -> 0.11 | B123: 1 | D123: 0.6703230624 | F123: 0.6703230624 | H123: 0.09247745797 | I123: 0 | J123: 0 | L123: 0.09135749125
A124: =A123+Model!$C$48 -> 0.111 | B124: 1 | D124: 0.668134934 | F124: 0.668134934 | H124: 0.09314668697 | I124: 0.09270108219 | J124: 1 | L124: 0.09270108219
A125: =A124+Model!$C$48 -> 0.112 | B125: 1 | D125: 0.6659670003 | F125: 0.6659670003 | H125: 0.09381373794 | I125: 0 | J125: 0 | L125: 0.09270108219
A126: =A125+Model!$C$48 -> 0.113 | B126: 1 | D126: 0.6638189779 | F126: 0.6638189779 | H126: 0.09447863093 | I126: 0.09403590677 | J126: 1 | L126: 0.09403590677
A127: =A126+Model!$C$48 -> 0.114 | B127: 1 | D127: 0.6616905877 | F127: 0.6616905877 | H127: 0.09514138571 | I127: 0 | J127: 0 | L127: 0.09403590677
A128: =A127+Model!$C$48 -> 0.115 | B128: 1 | D128: 0.6595815556 | F128: 0.6595815556 | H128: 0.09580202178 | I128: 0.0953621258 | J128: 1 | L128: 0.0953621258
A129: =A128+Model!$C$48 -> 0.116 | B129: 1 | D129: 0.6574916118 | F129: 0.6574916118 | H129: 0.09646055837 | I129: 0 | J129: 0 | L129: 0.0953621258
A130: =A129+Model!$C$48 -> 0.117 | B130: 1 | D130: 0.6554204913 | F130: 0.6554204913 | H130: 0.09711701442 | I130: 0.09667989561 | J130: 1 | L130: 0.09667989561
A131: =A130+Model!$C$48 -> 0.118 | B131: 1 | D131: 0.6533679333 | F131: 0.6533679333 | H131: 0.09777140863 | I131: 0 | J131: 0 | L131: 0.09667989561
A132: =A131+Model!$C$48 -> 0.119 | B132: 1 | D132: 0.6513336815 | F132: 0.6513336815 | H132: 0.09842375944 | I132: 0.09798936822 | J132: 1 | L132: 0.09798936822
A133: =A132+Model!$C$48 -> 0.12 | B133: 1 | D133: 0.649317484 | F133: 0.649317484 | H133: 0.09907408502 | I133: 0 | J133: 0 | L133: 0.09798936822
A134: =A133+Model!$C$48 -> 0.121 | B134: 1 | D134: 0.6473190929 | F134: 0.6473190929 | H134: 0.09972240331 | I134: 0.09929069145 | J134: 1 | L134: 0.09929069145
A135: =A134+Model!$C$48 -> 0.122 | B135: 1 | D135: 0.6453382647 | F135: 0.6453382647 | H135: 0.100368732 | I135: 0 | J135: 0 | L135: 0.09929069145
A136: =A135+Model!$C$48 -> 0.123 | B136: 1 | D136: 0.64337476 | F136: 0.64337476 | H136: 0.1010130885 | I136: 0.1005840091 | J136: 1 | L136: 0.1005840091
A137: =A136+Model!$C$48 -> 0.124 | B137: 1 | D137: 0.6414283434 | F137: 0.6414283434 | H137: 0.1016554901 | I137: 0 | J137: 0 | L137: 0.1005840091
A138: =A137+Model!$C$48 -> 0.125 | B138: 1 | D138: 0.6394987835 | F138: 0.6394987835 | H138: 0.1022959536 | I138: 0.101869461 | J138: 1 | L138: 0.101869461
A139: =A138+Model!$C$48 -> 0.126 | B139: 1 | D139: 0.6375858527 | F139: 0.6375858527 | H139: 0.1029344959 | I139: 0 | J139: 0 | L139: 0.101869461
A140: =A139+Model!$C$48 -> 0.127 | B140: 1 | D140: 0.6356893275 | F140: 0.6356893275 | H140: 0.1035711335 | I140: 0.1031471833 | J140: 1 | L140: 0.1031471833
A141: =A140+Model!$C$48 -> 0.128 | B141: 1 | D141: 0.6338089879 | F141: =B141*D141 -> 0.6338089879 | H141: 0.1042058827 | I141: 0 | J141: 0 | L141: 0.1031471833
A142: =A141+Model!$C$48 -> 0.129 | B142: 1 | D142: 0.6319446178 | F142: 0.6319446178 | H142: =0.5*(F142+F141)*(A142-A141)+H141 -> 0.1048387595 | I142: 0.1044173084 | J142: 1 | L142: 0.1044173084
A143: =A142+Model!$C$48 -> 0.13 | B143: 1 | D143: 0.6300960047 | F143: 0.6300960047 | H143: 0.1054697798 | I143: 0 | J143: =IF(J142=1,0,1) -> 0 | L143: 0.1044173084
A144: =A143+Model!$C$48 -> 0.131 | B144: =ERF($B$10/SQRT(A144)) -> 1 | D144: =ERF($B$11/SQRT(A144)) -> 0.6282629397 | F144: 0.6282629397 | H144: 0.1060989593 | I144: 0.1056799652 | J144: 1 | L144: 0.1056799652
A145: =A144+Model!$C$48 -> 0.132 | B145: 1 | D145: 0.6264452175 | F145: 0.6264452175 | H145: 0.1067263133 | I145: =(I143+((A145-A144)/3)*(4*F143+2*F144))*J145 -> 0 | J145: 0 | L145: =IF(J145=1,I145,I144) -> 0.1056799652
A146: =A145+Model!$C$48 -> 0.133 | B146: 1 | D146: 0.624642636 | F146: 0.624642636 | H146: 0.1073518573 | I146: 0.1069352793 | J146: 1 | L146: 0.1069352793
A147: =A146+Model!$C$48 -> 0.134 | B147: 1 | D147: 0.6228549968 | F147: 0.6228549968 | H147: 0.1079756061 | I147: 0 | J147: 0 | L147: 0.1069352793
A148: =A147+Model!$C$48 -> 0.135 | B148: 1 | D148: 0.6210821047 | F148: 0.6210821047 | H148: 0.1085975746 | I148: 0.1081833728 | J148: 1 | L148: 0.1081833728
A149: =A148+Model!$C$48 -> 0.136 | B149: 1 | D149: 0.6193237677 | F149: 0.6193237677 | H149: 0.1092177776 | I149: 0 | J149: 0 | L149: 0.1081833728
A150: =A149+Model!$C$48 -> 0.137 | B150: 1 | D150: 0.6175797972 | F150: 0.6175797972 | H150: 0.1098362294 | I150: 0.1094243648 | J150: 1 | L150: 0.1094243648
A151: =A150+Model!$C$48 -> 0.138 | B151: 1 | D151: 0.6158500075 | F151: 0.6158500075 | H151: 0.1104529443 | I151: 0 | J151: 0 | L151: 0.1094243648
A152: =A151+Model!$C$48 -> 0.139 | B152: 1 | D152: 0.6141342163 | F152: 0.6141342163 | H152: 0.1110679364 | I152: 0.1106583712 | J152: 1 | L152: 0.1106583712
A153: =A152+Model!$C$48 -> 0.14 | B153: 1 | D153: 0.6124322441 | F153: 0.6124322441 | H153: 0.1116812196 | I153: 0 | J153: 0 | L153: 0.1106583712
A154: =A153+Model!$C$48 -> 0.141 | B154: 1 | D154: 0.6107439145 | F154: 0.6107439145 | H154: 0.1122928077 | I154: 0.1118855049 | J154: 1 | L154: 0.1118855049
A155: =A154+Model!$C$48 -> 0.142 | B155: 1 | D155: 0.6090690539 | F155: 0.6090690539 | H155: 0.1129027142 | I155: 0 | J155: 0 | L155: 0.1118855049
A156: =A155+Model!$C$48 -> 0.143 | B156: 1 | D156: 0.6074074918 | F156: 0.6074074918 | H156: 0.1135109524 | I156: 0.1131058762 | J156: 1 | L156: 0.1131058762
A157: =A156+Model!$C$48 -> 0.144 | B157: 1 | D157: 0.6057590604 | F157: 0.6057590604 | H157: 0.1141175357 | I157: 0 | J157: 0 | L157: 0.1131058762
A158: =A157+Model!$C$48 -> 0.145 | B158: 1 | D158: 0.6041235945 | F158: 0.6041235945 | H158: 0.114722477 | I158: 0.1143195922 | J158: 1 | L158: 0.1143195922
A159: =A158+Model!$C$48 -> 0.146 | B159: 1 | D159: 0.6025009319 | F159: 0.6025009319 | H159: 0.1153257893 | I159: 0 | J159: 0 | L159: 0.1143195922
A160: =A159+Model!$C$48 -> 0.147 | B160: 1 | D160: 0.6008909128 | F160: 0.6008909128 | H160: 0.1159274852 | I160: 0.1155267576 | J160: 1 | L160: 0.1155267576
A161: =A160+Model!$C$48 -> 0.148 | B161: 1 | D161: 0.5992933803 | F161: 0.5992933803 | H161: 0.1165275774 | I161: 0 | J161: 0 | L161: 0.1155267576
A162: =A161+Model!$C$48 -> 0.149 | B162: 1 | D162: 0.5977081797 | F162: 0.5977081797 | H162: 0.1171260782 | I162: 0.1167274744 | J162: 1 | L162: 0.1167274744
A163: =A162+Model!$C$48 -> 0.15 | B163: 1 | D163: 0.5961351592 | F163: 0.5961351592 | H163: 0.1177229998 | I163: 0 | J163: 0 | L163: 0.1167274744
A164: =A163+Model!$C$48 -> 0.151 | B164: 1 | D164: 0.5945741691 | F164: 0.5945741691 | H164: 0.1183183545 | I164: 0.1179218421 | J164: 1 | L164: 0.1179218421
A165: =A164+Model!$C$48 -> 0.152 | B165: 1 | D165: 0.5930250625 | F165: 0.5930250625 | H165: 0.1189121541 | I165: 0 | J165: 0 | L165: 0.1179218421
A166: =A165+Model!$C$48 -> 0.153 | B166: 1 | D166: 0.5914876945 | F166: 0.5914876945 | H166: 0.1195044105 | I166: 0.1191099577 | J166: 1 | L166: 0.1191099577
A167: =A166+Model!$C$48 -> 0.154 | B167: 1 | D167: 0.5899619227 | F167: 0.5899619227 | H167: 0.1200951353 | I167: 0 | J167: 0 | L167: 0.1191099577
A168: =A167+Model!$C$48 -> 0.155 | B168: 1 | D168: 0.5884476072 | F168: 0.5884476072 | H168: 0.1206843401 | I168: 0.1202919159 | J168: 1 | L168: 0.1202919159
A169: =A168+Model!$C$48 -> 0.156 | B169: 1 | D169: 0.5869446099 | F169: 0.5869446099 | H169: 0.1212720362 | I169: 0 | J169: 0 | L169: 0.1202919159
A170: =A169+Model!$C$48 -> 0.157 | B170: 1 | D170: 0.5854527952 | F170: 0.5854527952 | H170: 0.1218582349 | I170: 0.1214678092 | J170: 1 | L170: 0.1214678092
A171: =A170+Model!$C$48 -> 0.158 | B171: 1 | D171: 0.5839720297 | F171: 0.5839720297 | H171: 0.1224429473 | I171: 0 | J171: 0 | L171: 0.1214678092
A172: =A171+Model!$C$48 -> 0.159 | B172: 1 | D172: 0.5825021818 | F172: 0.5825021818 | H172: 0.1230261844 | I172: 0.1226377276 | J172: 1 | L172: 0.1226377276
A173: =A172+Model!$C$48 -> 0.16 | B173: 1 | D173: 0.5810431223 | F173: 0.5810431223 | H173: 0.123607957 | I173: 0 | J173: 0 | L173: 0.1226377276
A174: =A173+Model!$C$48 -> 0.161 | B174: 1 | D174: 0.579594724 | F174: 0.579594724 | H174: 0.124188276 | I174: 0.1238017592 | J174: 1 | L174: 0.1238017592
A175: =A174+Model!$C$48 -> 0.162 | B175: 1 | D175: 0.5781568615 | F175: 0.5781568615 | H175: 0.1247671518 | I175: 0 | J175: 0 | L175: 0.1238017592
A176: =A175+Model!$C$48 -> 0.163 | B176: 1 | D176: 0.5767294115 | F176: 0.5767294115 | H176: 0.1253445949 | I176: 0.1249599901 | J176: 1 | L176: 0.1249599901
A177: =A176+Model!$C$48 -> 0.164 | B177: 1 | D177: 0.5753122527 | F177: 0.5753122527 | H177: 0.1259206157 | I177: 0 | J177: 0 | L177: 0.1249599901
A178: =A177+Model!$C$48 -> 0.165 | B178: 1 | D178: 0.5739052655 | F178: 0.5739052655 | H178: 0.1264952245 | I178: 0.1261125041 | J178: 1 | L178: 0.1261125041
A179: =A178+Model!$C$48 -> 0.166 | B179: 1 | D179: 0.5725083323 | F179: 0.5725083323 | H179: 0.1270684313 | I179: 0 | J179: 0 | L179: 0.1261125041
A180: =A179+Model!$C$48 -> 0.167 | B180: 1 | D180: 0.5711213373 | F180: 0.5711213373 | H180: 0.1276402461 | I180: 0.1272593834 | J180: 1 | L180: 0.1272593834
A181: =A180+Model!$C$48 -> 0.168 | B181: 1 | D181: 0.5697441665 | F181: 0.5697441665 | H181: 0.1282106789 | I181: 0 | J181: 0 | L181: 0.1272593834
A182: =A181+Model!$C$48 -> 0.169 | B182: 1 | D182: 0.5683767075 | F182: 0.5683767075 | H182: 0.1287797393 | I182: 0.1284007079 | J182: 1 | L182: 0.1284007079
A183: =A182+Model!$C$48 -> 0.17 | B183: 1 | D183: 0.5670188498 | F183: 0.5670188498 | H183: 0.1293474371 | I183: 0 | J183: 0 | L183: 0.1284007079
A184: =A183+Model!$C$48 -> 0.171 | B184: 1 | D184: 0.5656704845 | F184: 0.5656704845 | H184: 0.1299137817 | I184: 0.1295365561 | J184: 1 | L184: 0.1295365561
A185: =A184+Model!$C$48 -> 0.172 | B185: 1 | D185: 0.5643315045 | F185: 0.5643315045 | H185: 0.1304787827 | I185: 0 | J185: 0 | L185: 0.1295365561
A186: =A185+Model!$C$48 -> 0.173 | B186: 1 | D186: 0.5630018041 | F186: 0.5630018041 | H186: 0.1310424494 | I186: 0.1306670044 | J186: 1 | L186: 0.1306670044
A187: =A186+Model!$C$48 -> 0.174 | B187: 1 | D187: 0.5616812793 | F187: 0.5616812793 | H187: 0.1316047909 | I187: 0 | J187: 0 | L187: 0.1306670044
A188: =A187+Model!$C$48 -> 0.175 | B188: 1 | D188: 0.5603698278 | F188: 0.5603698278 | H188: 0.1321658165 | I188: 0.1317921277 | J188: 1 | L188: 0.1317921277
A189: =A188+Model!$C$48 -> 0.176 | B189: 1 | D189: 0.5590673486 | F189: 0.5590673486 | H189: 0.1327255351 | I189: 0 | J189: 0 | L189: 0.1317921277
A190: =A189+Model!$C$48 -> 0.177 | B190: 1 | D190: 0.5577737423 | F190: 0.5577737423 | H190: 0.1332839556 | I190: 0.132911999 | J190: 1 | L190: 0.132911999
A191: =A190+Model!$C$48 -> 0.178 | B191: 1 | D191: 0.5564889112 | F191: 0.5564889112 | H191: 0.133841087 | I191: 0 | J191: 0 | L191: 0.132911999
A192: =A191+Model!$C$48 -> 0.179 | B192: 1 | D192: 0.5552127587 | F192: 0.5552127587 | H192: 0.1343969378 | I192: 0.13402669 | J192: 1 | L192: 0.13402669
A193: =A192+Model!$C$48 -> 0.18 | B193: 1 | D193: 0.5539451898 | F193: 0.5539451898 | H193: 0.1349515168 | I193: 0 | J193: 0 | L193: 0.13402669
A194: =A193+Model!$C$48 -> 0.181 | B194: 1 | D194: 0.552686111 | F194: 0.552686111 | H194: 0.1355048324 | I194: 0.1351362704 | J194: 1 | L194: 0.1351362704
A195: =A194+Model!$C$48 -> 0.182 | B195: 1 | D195: 0.55143543 | F195: 0.55143543 | H195: 0.1360568932 | I195: 0 | J195: 0 | L195: 0.1351362704
A196: =A195+Model!$C$48 -> 0.183 | B196: 1 | D196: 0.550193056 | F196: 0.550193056 | H196: 0.1366077074 | I196: 0.1362408089 | J196: 1 | L196: 0.1362408089
A197: =A196+Model!$C$48 -> 0.184 | B197: 1 | D197: 0.5489588994 | F197: 0.5489588994 | H197: 0.1371572834 | I197: 0 | J197: 0 | L197: 0.1362408089
A198: =A197+Model!$C$48 -> 0.185 | B198: 1 | D198: 0.547732872 | F198: 0.547732872 | H198: 0.1377056293 | I198: 0.1373403722 | J198: 1 | L198: 0.1373403722
A199: =A198+Model!$C$48 -> 0.186 | B199: 1 | D199: 0.5465148868 | F199: 0.5465148868 | H199: 0.1382527532 | I199: 0 | J199: 0 | L199: 0.1373403722
A200: =A199+Model!$C$48 -> 0.187 | B200: 1 | D200: 0.5453048583 | F200: 0.5453048583 | H200: 0.138798663 | I200: 0.138435026 | J200: 1 | L200: 0.138435026
A201: =A200+Model!$C$48 -> 0.188 | B201: 1 | D201: 0.5441027018 | F201: 0.5441027018 | H201: 0.1393433668 | I201: 0 | J201: 0 | L201: 0.138435026
A202: =A201+Model!$C$48 -> 0.189 | B202: 1 | D202: 0.5429083342 | F202: 0.5429083342 | H202: 0.1398868723 | I202: 0.1395248342 | J202: 1 | L202: 0.1395248342
A203: =A202+Model!$C$48 -> 0.19 | B203: 1 | D203: 0.5417216734 | F203: 0.5417216734 | H203: 0.1404291873 | I203: 0 | J203: 0 | L203: 0.1395248342
A204: =A203+Model!$C$48 -> 0.191 | B204: 1 | D204: 0.5405426387 | F204: 0.5405426387 | H204: 0.1409703195 | I204: 0.1406098598 | J204: 1 | L204: 0.1406098598
A205: =A204+Model!$C$48 -> 0.192 | B205: 1 | D205: 0.5393711501 | F205: =B205*D205 -> 0.5393711501 | H205: 0.1415102764 | I205: 0 | J205: 0 | L205: 0.1406098598
A206: =A205+Model!$C$48 -> 0.193 | B206: 1 | D206: 0.5382071292 | F206: 0.5382071292 | H206: =0.5*(F206+F205)*(A206-A205)+H205 -> 0.1420490655 | I206: 0.1416901641 | J206: 1 | L206: 0.1416901641
A207: =A206+Model!$C$48 -> 0.194 | B207: 1 | D207: 0.5370504985 | F207: 0.5370504985 | H207: 0.1425866943 | I207: 0 | J207: =IF(J206=1,0,1) -> 0 | L207: 0.1416901641
A208: =A207+Model!$C$48 -> 0.195 | B208: =ERF($B$10/SQRT(A208)) -> 1 | D208: =ERF($B$11/SQRT(A208)) -> 0.5359011816 | F208: 0.5359011816 | H208: 0.1431231702 | I208: 0.1427658073 | J208: 1 | L208: 0.1427658073
A209: =A208+Model!$C$48 -> 0.196 | B209: 1 | D209: 0.5347591032 | F209: 0.5347591032 | H209: 0.1436585003 | I209: =(I207+((A209-A208)/3)*(4*F207+2*F208))*J209 -> 0 | J209: 0 | L209: =IF(J209=1,I209,I208) -> 0.1427658073
... 805 more rows

Sheet pS2 (hidden)
A10: a | B10: =(Results!$B$9+Model!$G$48)/(SQRT(4*Model!$G$50*Results!B$11)) -> 2.286026108
A11: b | B11: =(Results!$B$10-Model!$G$49)/(SQRT(4*Model!$G$50*Results!B$11)) -> 0.2286026108
A12: t | B12: erf(a/sqrt(t)) | D12: erf(b/sqrt(t)) | F12: integrand | H12: trapezoidal integral O(h^2) | I12: Simpson integral O(h^4) | J12: kount | L12: Simpson total Sum
A13: 0 | B13: 1 | D13: 1 | F13: =B13*D13 -> 1 | H13: 0 | I13: 0
A14: =Model!$C$48 -> 0.001 | B14: =ERF($B$10/SQRT(A14)) -> 1 | D14: =IF($B$11>0,ERF($B$11/SQRT(A14)),-ERF(-$B$11/SQRT(A14))) -> 1 | F14: 1 | H14: =0.5*(F14+F13)*(A14-A13)+H13 -> 0.001 | J14: 1
A15: =A14+Model!$C$48 -> 0.002 | B15: 1 | D15: 1 | F15: 1 | H15: 0.002 | J15: =IF(J14=1,0,1) -> 0
A16: =A15+Model!$C$48 -> 0.003 | B16: 1 | D16: 0.9999999964 | F16: 0.9999999964 | H16: 0.002999999998 | I16: =(I13+((A16-A15)/3)*(F13+4*F14+2*F15))*J16 -> 0.002333333333 | J16: 1 | L16: =IF(J16=1,I16,I15) -> 0.002333333333
A17: =A16+Model!$C$48 -> 0.004 | B17: 1 | D17: 0.9999996807 | F17: 0.9999996807 | H17: 0.003999999837 | I17: =(I15+((A17-A16)/3)*(4*F15+2*F16))*J17 -> 0 | J17: 0 | L17: =IF(J17=1,I17,I16) -> 0.002333333333
A18: =A17+Model!$C$48 -> 0.005 | B18: 1 | D18: 0.9999951703 | F18: 0.9999951703 | H18: 0.004999997262 | I18: 0.004333333116 | J18: 1 | L18: 0.004333333116
A19: =A18+Model!$C$48 -> 0.006 | B19: 1 | D19: 0.9999700299 | F19: 0.9999700299 | H19: 0.005999979862 | I19: 0 | J19: 0 | L19: 0.004333333116
A20: =A19+Model!$C$48 -> 0.007 | B20: 1 | D20: 0.9998884956 | F20: 0.9998884956 | H20: 0.006999909125 | I20: 0.006333306696 | J20: 1 | L20: 0.006333306696
A21: =A20+Model!$C$48 -> 0.008 | B21: 1 | D21: 0.9996991008 | F21: 0.9996991008 | H21: 0.007999702923 | I21: 0 | J21: 0 | L21: 0.006333306696
A22: =A21+Model!$C$48 -> 0.009 | B22: 1 | D22: 0.9993451269 | F22: 0.9993451269 | H22: 0.008999225037 | I22: 0.008332957424 | J22: 1 | L22: 0.008332957424
A23: =A22+Model!$C$48 -> 0.01 | B23: 1 | D23: 0.9987747204 | F23: 0.9987747204 | H23: 0.009998284961 | I23: 0 | J23: 0 | L23: 0.008332957424
A24: =A23+Model!$C$48 -> 0.011 | B24: 1 | D24: 0.9979471439 | F24: 0.9979471439 | H24: 0.01099664589 | I24: 0.01033126741 | J24: 1 | L24: 0.01033126741
A25: =A24+Model!$C$48 -> 0.012 | B25: 1 | D25: 0.996835063 | F25: 0.996835063 | H25: 0.011994037 | I25: 0 | J25: 0 | L25: 0.01033126741
A26: =A25+Model!$C$48 -> 0.013 | B26: 1 | D26: 0.9954241174 | F26: 0.9954241174 | H26: 0.01299016659 | I26: 0.01232642031 | J26: 1 | L26: 0.01232642031
A27: =A26+Model!$C$48 -> 0.014 | B27: 1 | D27: 0.9937110701 | F27: 0.9937110701 | H27: 0.01398473418 | I27: 0 | J27: 0 | L27: 0.01232642031
A28: =A27+Model!$C$48 -> 0.015 | B28: 1 | D28: 0.9917014575 | F28: 0.9917014575 | H28: 0.01497744044 | I28: 0.01431612651 | J28: 1 | L28: 0.01431612651
A29: =A28+Model!$C$48 -> 0.016 | B29: 1 | D29: 0.9894072717 | F29: 0.9894072717 | H29: 0.01596799481 | I29: 0 | J29: 0 | L29: 0.01431612651
A30: =A29+Model!$C$48 -> 0.017 | B30: 1 | D30: 0.9868449299 | F30: 0.9868449299 | H30: 0.01695612091 | I30: 0.01629799997 | J30: 1 | L30: 0.01629799997
A31: =A30+Model!$C$48 -> 0.018 | B31: 1 | D31: 0.9840336177 | F31: 0.9840336177 | H31: 0.01794156018 | I31: 0 | J31: 0 | L31: 0.01629799997
A32: =A31+Model!$C$48 -> 0.019 | B32: 1 | D32: 0.9809940016 | F32: 0.9809940016 | H32: 0.01892407399 | I32: 0.01826981562 | J32: 1 | L32: 0.01826981562
A33: =A32+Model!$C$48 -> 0.02 | B33: 1 | D33: 0.9777472687 | F33: 0.9777472687 | H33: 0.01990344463 | I33: 0 | J33: 0 | L33: 0.01826981562
A34: =A33+Model!$C$48 -> 0.021 | B34: 1 | D34: 0.9743144356 | F34: 0.9743144356 | H34: 0.02087947548 | I34: 0.02022963913 | J34: 1 | L34: 0.02022963913
A35: =A34+Model!$C$48 -> 0.022 | B35: 1 | D35: 0.9707158702 | F35: 0.9707158702 | H35: 0.02185199063 | I35: 0 | J35: 0 | L35: 0.02022963913
A36: =A35+Model!$C$48 -> 0.023 | B36: 1 | D36: 0.9669709786 | F36: 0.9669709786 | H36: 0.02282083406 | I36: 0.02217586896 | J36: 1 | L36: 0.02217586896
A37: =A36+Model!$C$48 -> 0.024 | B37: 1 | D37: 0.9630980128 | F37: 0.9630980128 | H37: 0.02378586855 | I37: 0 | J37: 0 | L37: 0.02217586896
A38: =A37+Model!$C$48 -> 0.025 | B38: 1 | D38: 0.9591139691 | F38: 0.9591139691 | H38: 0.02474697454 | I38: 0.02410722894 | J38: 1 | L38: 0.02410722894
A39: =A38+Model!$C$48 -> 0.026 | B39: 1 | D39: 0.9550345507 | F39: 0.9550345507 | H39: 0.0257040488 | I39: 0 | J39: 0 | L39: 0.02410722894
A40: =A39+Model!$C$48 -> 0.027 | B40: 1 | D40: 0.9508741749 | F40: 0.9508741749 | H40: 0.02665700317 | I40: 0.02602273727 | J40: 1 | L40: 0.02602273727
A41: =A40+Model!$C$48 -> 0.028 | B41: 1 | D41: 0.94664601 | F41: 0.94664601 | H41: 0.02760576326 | I41: 0 | J41: 0 | L41: 0.02602273727
A42: =A41+Model!$C$48 -> 0.029 | B42: 1 | D42: 0.9423620332 | F42: 0.9423620332 | H42: 0.02855026728 | I42: 0.02792166684 | J42: 1 | L42: 0.02792166684
A43: =A42+Model!$C$48 -> 0.03 | B43: 1 | D43: 0.9380330987 | F43: 0.9380330987 | H43: 0.02949046485 | I43: 0 | J43: 0 | L43: 0.02792166684
A44: =A43+Model!$C$48 -> 0.031 | B44: 1 | D44: 0.933669013 | F44: 0.933669013 | H44: 0.0304263159 | I44: 0.02980350495 | J44: 1 | L44: 0.02980350495
A45: =A44+Model!$C$48 -> 0.032 | B45: 1 | D45: 0.9292786123 | F45: 0.9292786123 | H45: 0.03135778972 | I45: 0 | J45: 0 | L45: 0.02980350495
A46: =A45+Model!$C$48 -> 0.033 | B46: 1 | D46: 0.9248698388 | F46: 0.9248698388 | H46: 0.03228486394 | I46: 0.03166791604 | J46: 1 | L46: 0.03166791604
A47: =A46+Model!$C$48 -> 0.034 | B47: 1 | D47: 0.9204498156 | F47: 0.9204498156 | H47: 0.03320752377 | I47: 0 | J47: 0 | L47: 0.03166791604
A48: =A47+Model!$C$48 -> 0.035 | B48: 1 | D48: 0.9160249174 | F48: 0.9160249174 | H48: 0.03412576113 | I48: 0.03351470904 | J48: 1 | L48: 0.03351470904
A49: =A48+Model!$C$48 -> 0.036 | B49: 1 | D49: 0.9116008378 | F49: 0.9116008378 | H49: 0.03503957401 | I49: 0 | J49: 0 | L49: 0.03351470904
A50: =A49+Model!$C$48 -> 0.037 | B50: 1 | D50: 0.9071826512 | F50: 0.9071826512 | H50: 0.03594896576 | I50: 0.03534380949 | J50: 1 | L50: 0.03534380949
A51: =A50+Model!$C$48 -> 0.038 | B51: 1 | D51: 0.9027748709 | F51: 0.9027748709 | H51: 0.03685394452 | I51: 0 | J51: 0 | L51: 0.03534380949
A52: =A51+Model!$C$48 -> 0.039 | B52: 1 | D52: 0.8983815021 | F52: 0.8983815021 | H52: 0.0377545227 | I52: 0.03715523627 | J52: 1 | L52: 0.03715523627
A53: =A52+Model!$C$48 -> 0.04 | B53: 1 | D53: 0.8940060908 | F53: 0.8940060908 | H53: 0.0386507165 | I53: 0 | J53: 0 | L53: 0.03715523627
A54: =A53+Model!$C$48 -> 0.041 | B54: 1 | D54: 0.889651768 | F54: 0.889651768 | H54: 0.03954254543 | I54: 0.03894908233 | J54: 1 | L54: 0.03894908233
A55: =A54+Model!$C$48 -> 0.042 | B55: 1 | D55: 0.8853212907 | F55: 0.8853212907 | H55: 0.04043003196 | I55: 0 | J55: 0 | L55: 0.03894908233
A56: =A55+Model!$C$48 -> 0.043 | B56: 1 | D56: 0.8810170783 | F56: 0.8810170783 | H56: 0.04131320114 | I56: 0.04072549888 | J56: 1 | L56: 0.04072549888
A57: =A56+Model!$C$48 -> 0.044 | B57: 1 | D57: 0.8767412464 | F57: 0.8767412464 | H57: 0.04219208031 | I57: 0 | J57: 0 | L57: 0.04072549888
A58: =A57+Model!$C$48 -> 0.045 | B58: 1 | D58: 0.8724956366 | F58: 0.8724956366 | H58: 0.04306669875 | I58: 0.04248468249 | J58: 1 | L58: 0.04248468249
A59: =A58+Model!$C$48 -> 0.046 | B59: 1 | D59: 0.8682818444 | F59: 0.8682818444 | H59: 0.04393708749 | I59: 0 | J59: 0 | L59: 0.04248468249
A60: =A59+Model!$C$48 -> 0.047 | B60: 1 | D60: 0.8641012437 | F60: 0.8641012437 | H60: 0.04480327903 | I60: 0.04422686456 | J60: 1 | L60: 0.04422686456
A61: =A60+Model!$C$48 -> 0.048 | B61: 1 | D61: 0.8599550091 | F61: 0.8599550091 | H61: 0.04566530716 | I61: 0 | J61: 0 | L61: 0.04422686456
A62: =A61+Model!$C$48 -> 0.049 | B62: 1 | D62: 0.8558441361 | F62: 0.8558441361 | H62: 0.04652320673 | I62: 0.0459523029 | J62: 1 | L62: 0.0459523029
A63: =A62+Model!$C$48 -> 0.05 | B63: 1 | D63: 0.8517694597 | F63: 0.8517694597 | H63: 0.04737701353 | I63: 0 | J63: 0 | L63: 0.0459523029
A64: =A63+Model!$C$48 -> 0.051 | B64: 1 | D64: 0.8477316703 | F64: 0.8477316703 | H64: 0.04822676409 | I64: 0.04766127472 | J64: 1 | L64: 0.04766127472
A65: =A64+Model!$C$48 -> 0.052 | B65: 1 | D65: 0.8437313289 | F65: 0.8437313289 | H65: 0.04907249559 | I65: 0 | J65: 0 | L65: 0.04766127472
A66: =A65+Model!$C$48 -> 0.053 | B66: 1 | D66: 0.8397688806 | F66: 0.8397688806 | H66: 0.0499142457 | I66: 0.04935407116 | J66: 1 | L66: 0.04935407116
A67: =A66+Model!$C$48 -> 0.054 | B67: 1 | D67: 0.8358446663 | F67: 0.8358446663 | H67: 0.05075205247 | I67: 0 | J67: 0 | L67: 0.04935407116
A68: =A67+Model!$C$48 -> 0.055 | B68: 1 | D68: 0.8319589338 | F68: 0.8319589338 | H68: 0.05158595427 | I68: 0.05103099278 | J68: 1 | L68: 0.05103099278
A69: =A68+Model!$C$48 -> 0.056 | B69: 1 | D69: 0.8281118478 | F69: 0.8281118478 | H69: 0.05241598966 | I69: 0 | J69: 0 | L69: 0.05103099278
A70: =A69+Model!$C$48 -> 0.057 | B70: 1 | D70: 0.8243034983 | F70: 0.8243034983 | H70: 0.05324219734 | I70: 0.05269234593 | J70: 1 | L70: 0.05269234593
A71: =A70+Model!$C$48 -> 0.058 | B71: 1 | D71: 0.8205339092 | F71: 0.8205339092 | H71: 0.05406461604 | I71: 0 | J71: 0 | L71: 0.05269234593
A72: =A71+Model!$C$48 -> 0.059 | B72: 1 | D72: 0.8168030451 | F72: 0.8168030451 | H72: 0.05488328452 | I72: 0.05433843986 | J72: 1 | L72: 0.05433843986
A73: =A72+Model!$C$48 -> 0.06 | B73: 1 | D73: 0.813110818 | F73: 0.813110818 | H73: 0.05569824145 | I73: 0 | J73: 0 | L73: 0.05433843986
A74: =A73+Model!$C$48 -> 0.061 | B74: 1 | D74: 0.8094570931 | F74: 0.8094570931 | H74: 0.0565095254 | I74: 0.05596958447 | J74: 1 | L74: 0.05596958447
A75: =A74+Model!$C$48 -> 0.062 | B75: 1 | D75: 0.8058416941 | F75: 0.8058416941 | H75: 0.0573171748 | I75: 0 | J75: 0 | L75: 0.05596958447
A76: =A75+Model!$C$48 -> 0.063 | B76: 1 | D76: 0.802264408 | F76: 0.802264408 | H76: 0.05812122785 | I76: 0.05758608839 | J76: 1 | L76: 0.05758608839
A77: =A76+Model!$C$48 -> 0.064 | B77: 1 | D77: 0.7987249895 | F77: =B77*D77 -> 0.7987249895 | H77: 0.05892172255 | I77: 0 | J77: 0 | L77: 0.05758608839
A78: =A77+Model!$C$48 -> 0.065 | B78: =ERF($B$10/SQRT(A78)) -> 1 | D78: =IF($B$11>0,ERF($B$11/SQRT(A78)),-ERF(-$B$11/SQRT(A78))) -> 0.7952231649 | F78: 0.7952231649 | H78: =0.5*(F78+F77)*(A78-A77)+H77 -> 0.05971869662 | I78: 0.05918825759 | J78: 1 | L78: 0.05918825759
A79: =A78+Model!$C$48 -> 0.066 | B79: 1 | D79: 0.7917586354 | F79: 0.7917586354 | H79: 0.06051218752 | I79: 0 | J79: =IF(J78=1,0,1) -> 0 | L79: 0.05918825759
A80: =A79+Model!$C$48 -> 0.067 | B80: 1 | D80: 0.7883310805 | F80: 0.7883310805 | H80: 0.06130223238 | I80: 0.06077639424 | J80: 1 | L80: 0.06077639424
A81: =A80+Model!$C$48 -> 0.068 | B81: 1 | D81: 0.7849401609 | F81: 0.7849401609 | H81: 0.062088868 | I81: =(I79+((A81-A80)/3)*(4*F79+2*F80))*J81 -> 0 | J81: 0 | L81: =IF(J81=1,I81,I80) -> 0.06077639424
A82: =A81+Model!$C$48 -> 0.069 | B82: 1 | D82: 0.7815855208 | F82: 0.7815855208 | H82: 0.06287213084 | I82: 0.06235079578 | J82: 1 | L82: 0.06235079578
A83: =A82+Model!$C$48 -> 0.07 | B83: 1 | D83: 0.7782667905 | F83: 0.7782667905 | H83: 0.063652057 | I83: 0 | J83: 0 | L83: 0.06235079578
A84: =A83+Model!$C$48 -> 0.071 | B84: 1 | D84: 0.7749835884 | F84: 0.7749835884 | H84: 0.06442868219 | I84: 0.06391175434 | J84: 1 | L84: 0.06391175434
A85: =A84+Model!$C$48 -> 0.072 | B85: 1 | D85: 0.771735523 | F85: 0.771735523 | H85: 0.06520204174 | I85: 0 | J85: 0 | L85: 0.06391175434
A86: =A85+Model!$C$48 -> 0.073 | B86: 1 | D86: 0.7685221942 | F86: 0.7685221942 | H86: 0.0659721706 | I86: 0.06545955614 | J86: 1 | L86: 0.06545955614
A87: =A86+Model!$C$48 -> 0.074 | B87: 1 | D87: 0.7653431956 | F87: 0.7653431956 | H87: 0.0667391033 | I87: 0 | J87: 0 | L87: 0.06545955614
A88: =A87+Model!$C$48 -> 0.075 | B88: 1 | D88: 0.7621981149 | F88: 0.7621981149 | H88: 0.06750287395 | I88: 0.06699448119 | J88: 1 | L88: 0.06699448119
A89: =A88+Model!$C$48 -> 0.076 | B89: 1 | D89: 0.759086536 | F89: 0.759086536 | H89: 0.06826351628 | I89: 0 | J89: 0 | L89: 0.06699448119
A90: =A89+Model!$C$48 -> 0.077 | B90: 1 | D90: 0.7560080397 | F90: 0.7560080397 | H90: 0.06902106357 | I90: 0.06851680304 | J90: 1 | L90: 0.06851680304
A91: =A90+Model!$C$48 -> 0.078 | B91: 1 | D91: 0.7529622047 | F91: 0.7529622047 | H91: 0.06977554869 | I91: 0 | J91: 0 | L91: 0.06851680304
A92: =A91+Model!$C$48 -> 0.079 | B92: 1 | D92: 0.7499486086 | F92: 0.7499486086 | H92: 0.0705270041 | I92: 0.07002678856 | J92: 1 | L92: 0.07002678856
A93: =A92+Model!$C$48 -> 0.08 | B93: 1 | D93: 0.7469668287 | F93: 0.7469668287 | H93: 0.07127546181 | I93: 0 | J93: 0 | L93: 0.07002678856
A94: =A93+Model!$C$48 -> 0.081 | B94: 1 | D94: 0.7440164427 | F94: 0.7440164427 | H94: 0.07202095345 | I94: 0.07152469792 | J94: 1 | L94: 0.07152469792
A95: =A94+Model!$C$48 -> 0.082 | B95: 1 | D95: 0.7410970293 | F95: 0.7410970293 | H95: 0.07276351019 | I95: 0 | J95: 0 | L95: 0.07152469792
A96: =A95+Model!$C$48 -> 0.083 | B96: 1 | D96: 0.7382081687 | F96: 0.7382081687 | H96: 0.07350316279 | I96: 0.07301078453 | J96: 1 | L96: 0.07301078453
A97: =A96+Model!$C$48 -> 0.084 | B97: 1 | D97: 0.7353494433 | F97: 0.7353494433 | H97: 0.07423994159 | I97: 0 | J97: 0 | L97: 0.07301078453
A98: =A97+Model!$C$48 -> 0.085 | B98: 1 | D98: 0.7325204382 | F98: 0.7325204382 | H98: 0.07497387653 | I98: 0.07448529505 | J98: 1 | L98: 0.07448529505
A99: =A98+Model!$C$48 -> 0.086 | B99: 1 | D99: 0.7297207411 | F99: 0.7297207411 | H99: 0.07570499712 | I99: 0 | J99: 0 | L99: 0.07448529505
A100: =A99+Model!$C$48 -> 0.087 | B100: 1 | D100: 0.7269499434 | F100: 0.7269499434 | H100: 0.07643333246 | I100: 0.07594846947 | J100: 1 | L100: 0.07594846947
A101: =A100+Model!$C$48 -> 0.088 | B101: 1 | D101: 0.7242076397 | F101: 0.7242076397 | H101: 0.07715891126 | I101: 0 | J101: 0 | L101: 0.07594846947
A102: =A101+Model!$C$48 -> 0.089 | B102: 1 | D102: 0.721493429 | F102: 0.721493429 | H102: 0.07788176179 | I102: 0.07740054115 | J102: 1 | L102: 0.07740054115
A103: =A102+Model!$C$48 -> 0.09 | B103: 1 | D103: 0.7188069138 | F103: 0.7188069138 | H103: 0.07860191196 | I103: 0 | J103: 0 | L103: 0.07740054115
A104: =A103+Model!$C$48 -> 0.091 | B104: 1 | D104: 0.7161477015 | F104: 0.7161477015 | H104: 0.07931938927 | I104: 0.078841737 | J104: 1 | L104: 0.078841737
A105: =A104+Model!$C$48 -> 0.092 | B105: 1 | D105: 0.7135154036 | F105: 0.7135154036 | H105: 0.08003422082 | I105: 0 | J105: 0 | L105: 0.078841737
A106: =A105+Model!$C$48 -> 0.093 | B106: 1 | D106: 0.7109096364 | F106: 0.7109096364 | H106: 0.08074643334 | I106: 0.08027227754 | J106: 1 | L106: 0.08027227754
A107: =A106+Model!$C$48 -> 0.094 | B107: 1 | D107: 0.708330021 | F107: 0.708330021 | H107: 0.08145605317 | I107: 0 | J107: 0 | L107: 0.08027227754
A108: =A107+Model!$C$48 -> 0.095 | B108: 1 | D108: 0.7057761832 | F108: 0.7057761832 | H108: 0.08216310627 | I108: 0.08169237706 | J108: 1 | L108: 0.08169237706
A109: =A108+Model!$C$48 -> 0.096 | B109: 1 | D109: 0.703247754 | F109: 0.703247754 | H109: 0.08286761824 | I109: 0 | J109: 0 | L109: 0.08169237706
A110: =A109+Model!$C$48 -> 0.097 | B110: 1 | D110: 0.7007443693 | F110: 0.7007443693 | H110: 0.0835696143 | I110: 0.08310224381 | J110: 1 | L110: 0.08310224381
A111: =A110+Model!$C$48 -> 0.098 | B111: 1 | D111: 0.6982656701 | F111: 0.6982656701 | H111: 0.08426911932 | I111: 0 | J111: 0 | L111: 0.08310224381
A112: =A111+Model!$C$48 -> 0.099 | B112: 1 | D112: 0.6958113024 | F112: 0.6958113024 | H112: 0.08496615781 | I112: 0.08450208008 | J112: 1 | L112: 0.08450208008
A113: =A112+Model!$C$48 -> 0.1 | B113: 1 | D113: 0.6933809174 | F113: 0.6933809174 | H113: 0.08566075392 | I113: 0 | J113: 0 | L113: 0.08450208008
A114: =A113+Model!$C$48 -> 0.101 | B114: 1 | D114: 0.6909741715 | F114: 0.6909741715 | H114: 0.08635293146 | I114: 0.08589208243 | J114: 1 | L114: 0.08589208243
A115: =A114+Model!$C$48 -> 0.102 | B115: 1 | D115: 0.6885907264 | F115: 0.6885907264 | H115: 0.08704271391 | I115: 0 | J115: 0 | L115: 0.08589208243
A116: =A115+Model!$C$48 -> 0.103 | B116: 1 | D116: 0.6862302486 | F116: 0.6862302486 | H116: 0.0877301244 | I116: 0.08727244181 | J116: 1 | L116: 0.08727244181
A117: =A116+Model!$C$48 -> 0.104 | B117: 1 | D117: 0.6838924099 | F117: 0.6838924099 | H117: 0.08841518573 | I117: 0 | J117: 0 | L117: 0.08727244181
A118: =A117+Model!$C$48 -> 0.105 | B118: 1 | D118: 0.6815768874 | F118: 0.6815768874 | H118: 0.08909792038 | I118: 0.08864334375 | J118: 1 | L118: 0.08864334375
A119: =A118+Model!$C$48 -> 0.106 | B119: 1 | D119: 0.6792833629 | F119: 0.6792833629 | H119: 0.0897783505 | I119: 0 | J119: 0 | L119: 0.08864334375
A120: =A119+Model!$C$48 -> 0.107 | B120: 1 | D120: 0.6770115236 | F120: 0.6770115236 | H120: 0.09045649795 | I120: 0.09000496851 | J120: 1 | L120: 0.09000496851
A121: =A120+Model!$C$48 -> 0.108 | B121: 1 | D121: 0.6747610616 | F121: 0.6747610616 | H121: 0.09113238424 | I121: 0 | J121: 0 | L121: 0.09000496851
A122: =A121+Model!$C$48 -> 0.109 | B122: 1 | D122: 0.6725316738 | F122: 0.6725316738 | H122: 0.09180603061 | I122: 0.09135749125 | J122: 1 | L122: 0.09135749125
A123: =A122+Model!$C$48 -> 0.11 | B123: 1 | D123: 0.6703230624 | F123: 0.6703230624 | H123: 0.09247745797 | I123: 0 | J123: 0 | L123: 0.09135749125
A124: =A123+Model!$C$48 -> 0.111 | B124: 1 | D124: 0.668134934 | F124: 0.668134934 | H124: 0.09314668697 | I124: 0.09270108219 | J124: 1 | L124: 0.09270108219
A125: =A124+Model!$C$48 -> 0.112 | B125: 1 | D125: 0.6659670003 | F125: 0.6659670003 | H125: 0.09381373794 | I125: 0 | J125: 0 | L125: 0.09270108219
A126: =A125+Model!$C$48 -> 0.113 | B126: 1 | D126: 0.6638189779 | F126: 0.6638189779 | H126: 0.09447863093 | I126: 0.09403590677 | J126: 1 | L126: 0.09403590677
A127: =A126+Model!$C$48 -> 0.114 | B127: 1 | D127: 0.6616905877 | F127: 0.6616905877 | H127: 0.09514138571 | I127: 0 | J127: 0 | L127: 0.09403590677
A128: =A127+Model!$C$48 -> 0.115 | B128: 1 | D128: 0.6595815556 | F128: 0.6595815556 | H128: 0.09580202178 | I128: 0.0953621258 | J128: 1 | L128: 0.0953621258
A129: =A128+Model!$C$48 -> 0.116 | B129: 1 | D129: 0.6574916118 | F129: 0.6574916118 | H129: 0.09646055837 | I129: 0 | J129: 0 | L129: 0.0953621258
A130: =A129+Model!$C$48 -> 0.117 | B130: 1 | D130: 0.6554204913 | F130: 0.6554204913 | H130: 0.09711701442 | I130: 0.09667989561 | J130: 1 | L130: 0.09667989561
A131: =A130+Model!$C$48 -> 0.118 | B131: 1 | D131: 0.6533679333 | F131: 0.6533679333 | H131: 0.09777140863 | I131: 0 | J131: 0 | L131: 0.09667989561
A132: =A131+Model!$C$48 -> 0.119 | B132: 1 | D132: 0.6513336815 | F132: 0.6513336815 | H132: 0.09842375944 | I132: 0.09798936822 | J132: 1 | L132: 0.09798936822
A133: =A132+Model!$C$48 -> 0.12 | B133: 1 | D133: 0.649317484 | F133: 0.649317484 | H133: 0.09907408502 | I133: 0 | J133: 0 | L133: 0.09798936822
A134: =A133+Model!$C$48 -> 0.121 | B134: 1 | D134: 0.6473190929 | F134: 0.6473190929 | H134: 0.09972240331 | I134: 0.09929069145 | J134: 1 | L134: 0.09929069145
A135: =A134+Model!$C$48 -> 0.122 | B135: 1 | D135: 0.6453382647 | F135: 0.6453382647 | H135: 0.100368732 | I135: 0 | J135: 0 | L135: 0.09929069145
A136: =A135+Model!$C$48 -> 0.123 | B136: 1 | D136: 0.64337476 | F136: 0.64337476 | H136: 0.1010130885 | I136: 0.1005840091 | J136: 1 | L136: 0.1005840091
A137: =A136+Model!$C$48 -> 0.124 | B137: 1 | D137: 0.6414283434 | F137: 0.6414283434 | H137: 0.1016554901 | I137: 0 | J137: 0 | L137: 0.1005840091
A138: =A137+Model!$C$48 -> 0.125 | B138: 1 | D138: 0.6394987835 | F138: 0.6394987835 | H138: 0.1022959536 | I138: 0.101869461 | J138: 1 | L138: 0.101869461
A139: =A138+Model!$C$48 -> 0.126 | B139: 1 | D139: 0.6375858527 | F139: 0.6375858527 | H139: 0.1029344959 | I139: 0 | J139: 0 | L139: 0.101869461
A140: =A139+Model!$C$48 -> 0.127 | B140: 1 | D140: 0.6356893275 | F140: 0.6356893275 | H140: 0.1035711335 | I140: 0.1031471833 | J140: 1 | L140: 0.1031471833
A141: =A140+Model!$C$48 -> 0.128 | B141: 1 | D141: 0.6338089879 | F141: =B141*D141 -> 0.6338089879 | H141: 0.1042058827 | I141: 0 | J141: 0 | L141: 0.1031471833
A142: =A141+Model!$C$48 -> 0.129 | B142: =ERF($B$10/SQRT(A142)) -> 1 | D142: =IF($B$11>0,ERF($B$11/SQRT(A142)),-ERF(-$B$11/SQRT(A142))) -> 0.6319446178 | F142: 0.6319446178 | H142: =0.5*(F142+F141)*(A142-A141)+H141 -> 0.1048387595 | I142: 0.1044173084 | J142: 1 | L142: 0.1044173084
A143: =A142+Model!$C$48 -> 0.13 | B143: 1 | D143: 0.6300960047 | F143: 0.6300960047 | H143: 0.1054697798 | I143: 0 | J143: =IF(J142=1,0,1) -> 0 | L143: 0.1044173084
A144: =A143+Model!$C$48 -> 0.131 | B144: 1 | D144: 0.6282629397 | F144: 0.6282629397 | H144: 0.1060989593 | I144: 0.1056799652 | J144: 1 | L144: 0.1056799652
A145: =A144+Model!$C$48 -> 0.132 | B145: 1 | D145: 0.6264452175 | F145: 0.6264452175 | H145: 0.1067263133 | I145: =(I143+((A145-A144)/3)*(4*F143+2*F144))*J145 -> 0 | J145: 0 | L145: =IF(J145=1,I145,I144) -> 0.1056799652
A146: =A145+Model!$C$48 -> 0.133 | B146: 1 | D146: 0.624642636 | F146: 0.624642636 | H146: 0.1073518573 | I146: 0.1069352793 | J146: 1 | L146: 0.1069352793
A147: =A146+Model!$C$48 -> 0.134 | B147: 1 | D147: 0.6228549968 | F147: 0.6228549968 | H147: 0.1079756061 | I147: 0 | J147: 0 | L147: 0.1069352793
A148: =A147+Model!$C$48 -> 0.135 | B148: 1 | D148: 0.6210821047 | F148: 0.6210821047 | H148: 0.1085975746 | I148: 0.1081833728 | J148: 1 | L148: 0.1081833728
A149: =A148+Model!$C$48 -> 0.136 | B149: 1 | D149: 0.6193237677 | F149: 0.6193237677 | H149: 0.1092177776 | I149: 0 | J149: 0 | L149: 0.1081833728
A150: =A149+Model!$C$48 -> 0.137 | B150: 1 | D150: 0.6175797972 | F150: 0.6175797972 | H150: 0.1098362294 | I150: 0.1094243648 | J150: 1 | L150: 0.1094243648
A151: =A150+Model!$C$48 -> 0.138 | B151: 1 | D151: 0.6158500075 | F151: 0.6158500075 | H151: 0.1104529443 | I151: 0 | J151: 0 | L151: 0.1094243648
A152: =A151+Model!$C$48 -> 0.139 | B152: 1 | D152: 0.6141342163 | F152: 0.6141342163 | H152: 0.1110679364 | I152: 0.1106583712 | J152: 1 | L152: 0.1106583712
A153: =A152+Model!$C$48 -> 0.14 | B153: 1 | D153: 0.6124322441 | F153: 0.6124322441 | H153: 0.1116812196 | I153: 0 | J153: 0 | L153: 0.1106583712
A154: =A153+Model!$C$48 -> 0.141 | B154: 1 | D154: 0.6107439145 | F154: 0.6107439145 | H154: 0.1122928077 | I154: 0.1118855049 | J154: 1 | L154: 0.1118855049
A155: =A154+Model!$C$48 -> 0.142 | B155: 1 | D155: 0.6090690539 | F155: 0.6090690539 | H155: 0.1129027142 | I155: 0 | J155: 0 | L155: 0.1118855049
A156: =A155+Model!$C$48 -> 0.143 | B156: 1 | D156: 0.6074074918 | F156: 0.6074074918 | H156: 0.1135109524 | I156: 0.1131058762 | J156: 1 | L156: 0.1131058762
A157: =A156+Model!$C$48 -> 0.144 | B157: 1 | D157: 0.6057590604 | F157: 0.6057590604 | H157: 0.1141175357 | I157: 0 | J157: 0 | L157: 0.1131058762
A158: =A157+Model!$C$48 -> 0.145 | B158: 1 | D158: 0.6041235945 | F158: 0.6041235945 | H158: 0.114722477 | I158: 0.1143195922 | J158: 1 | L158: 0.1143195922
A159: =A158+Model!$C$48 -> 0.146 | B159: 1 | D159: 0.6025009319 | F159: 0.6025009319 | H159: 0.1153257893 | I159: 0 | J159: 0 | L159: 0.1143195922
A160: =A159+Model!$C$48 -> 0.147 | B160: 1 | D160: 0.6008909128 | F160: 0.6008909128 | H160: 0.1159274852 | I160: 0.1155267576 | J160: 1 | L160: 0.1155267576
A161: =A160+Model!$C$48 -> 0.148 | B161: 1 | D161: 0.5992933803 | F161: 0.5992933803 | H161: 0.1165275774 | I161: 0 | J161: 0 | L161: 0.1155267576
A162: =A161+Model!$C$48 -> 0.149 | B162: 1 | D162: 0.5977081797 | F162: 0.5977081797 | H162: 0.1171260782 | I162: 0.1167274744 | J162: 1 | L162: 0.1167274744
A163: =A162+Model!$C$48 -> 0.15 | B163: 1 | D163: 0.5961351592 | F163: 0.5961351592 | H163: 0.1177229998 | I163: 0 | J163: 0 | L163: 0.1167274744
A164: =A163+Model!$C$48 -> 0.151 | B164: 1 | D164: 0.5945741691 | F164: 0.5945741691 | H164: 0.1183183545 | I164: 0.1179218421 | J164: 1 | L164: 0.1179218421
A165: =A164+Model!$C$48 -> 0.152 | B165: 1 | D165: 0.5930250625 | F165: 0.5930250625 | H165: 0.1189121541 | I165: 0 | J165: 0 | L165: 0.1179218421
A166: =A165+Model!$C$48 -> 0.153 | B166: 1 | D166: 0.5914876945 | F166: 0.5914876945 | H166: 0.1195044105 | I166: 0.1191099577 | J166: 1 | L166: 0.1191099577
A167: =A166+Model!$C$48 -> 0.154 | B167: 1 | D167: 0.5899619227 | F167: 0.5899619227 | H167: 0.1200951353 | I167: 0 | J167: 0 | L167: 0.1191099577
A168: =A167+Model!$C$48 -> 0.155 | B168: 1 | D168: 0.5884476072 | F168: 0.5884476072 | H168: 0.1206843401 | I168: 0.1202919159 | J168: 1 | L168: 0.1202919159
A169: =A168+Model!$C$48 -> 0.156 | B169: 1 | D169: 0.5869446099 | F169: 0.5869446099 | H169: 0.1212720362 | I169: 0 | J169: 0 | L169: 0.1202919159
A170: =A169+Model!$C$48 -> 0.157 | B170: 1 | D170: 0.5854527952 | F170: 0.5854527952 | H170: 0.1218582349 | I170: 0.1214678092 | J170: 1 | L170: 0.1214678092
A171: =A170+Model!$C$48 -> 0.158 | B171: 1 | D171: 0.5839720297 | F171: 0.5839720297 | H171: 0.1224429473 | I171: 0 | J171: 0 | L171: 0.1214678092
A172: =A171+Model!$C$48 -> 0.159 | B172: 1 | D172: 0.5825021818 | F172: 0.5825021818 | H172: 0.1230261844 | I172: 0.1226377276 | J172: 1 | L172: 0.1226377276
A173: =A172+Model!$C$48 -> 0.16 | B173: 1 | D173: 0.5810431223 | F173: 0.5810431223 | H173: 0.123607957 | I173: 0 | J173: 0 | L173: 0.1226377276
A174: =A173+Model!$C$48 -> 0.161 | B174: 1 | D174: 0.579594724 | F174: 0.579594724 | H174: 0.124188276 | I174: 0.1238017592 | J174: 1 | L174: 0.1238017592
A175: =A174+Model!$C$48 -> 0.162 | B175: 1 | D175: 0.5781568615 | F175: 0.5781568615 | H175: 0.1247671518 | I175: 0 | J175: 0 | L175: 0.1238017592
A176: =A175+Model!$C$48 -> 0.163 | B176: 1 | D176: 0.5767294115 | F176: 0.5767294115 | H176: 0.1253445949 | I176: 0.1249599901 | J176: 1 | L176: 0.1249599901
A177: =A176+Model!$C$48 -> 0.164 | B177: 1 | D177: 0.5753122527 | F177: 0.5753122527 | H177: 0.1259206157 | I177: 0 | J177: 0 | L177: 0.1249599901
A178: =A177+Model!$C$48 -> 0.165 | B178: 1 | D178: 0.5739052655 | F178: 0.5739052655 | H178: 0.1264952245 | I178: 0.1261125041 | J178: 1 | L178: 0.1261125041
A179: =A178+Model!$C$48 -> 0.166 | B179: 1 | D179: 0.5725083323 | F179: 0.5725083323 | H179: 0.1270684313 | I179: 0 | J179: 0 | L179: 0.1261125041
A180: =A179+Model!$C$48 -> 0.167 | B180: 1 | D180: 0.5711213373 | F180: 0.5711213373 | H180: 0.1276402461 | I180: 0.1272593834 | J180: 1 | L180: 0.1272593834
A181: =A180+Model!$C$48 -> 0.168 | B181: 1 | D181: 0.5697441665 | F181: 0.5697441665 | H181: 0.1282106789 | I181: 0 | J181: 0 | L181: 0.1272593834
A182: =A181+Model!$C$48 -> 0.169 | B182: 1 | D182: 0.5683767075 | F182: 0.5683767075 | H182: 0.1287797393 | I182: 0.1284007079 | J182: 1 | L182: 0.1284007079
A183: =A182+Model!$C$48 -> 0.17 | B183: 1 | D183: 0.5670188498 | F183: 0.5670188498 | H183: 0.1293474371 | I183: 0 | J183: 0 | L183: 0.1284007079
A184: =A183+Model!$C$48 -> 0.171 | B184: 1 | D184: 0.5656704845 | F184: 0.5656704845 | H184: 0.1299137817 | I184: 0.1295365561 | J184: 1 | L184: 0.1295365561
A185: =A184+Model!$C$48 -> 0.172 | B185: 1 | D185: 0.5643315045 | F185: 0.5643315045 | H185: 0.1304787827 | I185: 0 | J185: 0 | L185: 0.1295365561
A186: =A185+Model!$C$48 -> 0.173 | B186: 1 | D186: 0.5630018041 | F186: 0.5630018041 | H186: 0.1310424494 | I186: 0.1306670044 | J186: 1 | L186: 0.1306670044
A187: =A186+Model!$C$48 -> 0.174 | B187: 1 | D187: 0.5616812793 | F187: 0.5616812793 | H187: 0.1316047909 | I187: 0 | J187: 0 | L187: 0.1306670044
A188: =A187+Model!$C$48 -> 0.175 | B188: 1 | D188: 0.5603698278 | F188: 0.5603698278 | H188: 0.1321658165 | I188: 0.1317921277 | J188: 1 | L188: 0.1317921277
A189: =A188+Model!$C$48 -> 0.176 | B189: 1 | D189: 0.5590673486 | F189: 0.5590673486 | H189: 0.1327255351 | I189: 0 | J189: 0 | L189: 0.1317921277
A190: =A189+Model!$C$48 -> 0.177 | B190: 1 | D190: 0.5577737423 | F190: 0.5577737423 | H190: 0.1332839556 | I190: 0.132911999 | J190: 1 | L190: 0.132911999
A191: =A190+Model!$C$48 -> 0.178 | B191: 1 | D191: 0.5564889112 | F191: 0.5564889112 | H191: 0.133841087 | I191: 0 | J191: 0 | L191: 0.132911999
A192: =A191+Model!$C$48 -> 0.179 | B192: 1 | D192: 0.5552127587 | F192: 0.5552127587 | H192: 0.1343969378 | I192: 0.13402669 | J192: 1 | L192: 0.13402669
A193: =A192+Model!$C$48 -> 0.18 | B193: 1 | D193: 0.5539451898 | F193: 0.5539451898 | H193: 0.1349515168 | I193: 0 | J193: 0 | L193: 0.13402669
A194: =A193+Model!$C$48 -> 0.181 | B194: 1 | D194: 0.552686111 | F194: 0.552686111 | H194: 0.1355048324 | I194: 0.1351362704 | J194: 1 | L194: 0.1351362704
A195: =A194+Model!$C$48 -> 0.182 | B195: 1 | D195: 0.55143543 | F195: 0.55143543 | H195: 0.1360568932 | I195: 0 | J195: 0 | L195: 0.1351362704
A196: =A195+Model!$C$48 -> 0.183 | B196: 1 | D196: 0.550193056 | F196: 0.550193056 | H196: 0.1366077074 | I196: 0.1362408089 | J196: 1 | L196: 0.1362408089
A197: =A196+Model!$C$48 -> 0.184 | B197: 1 | D197: 0.5489588994 | F197: 0.5489588994 | H197: 0.1371572834 | I197: 0 | J197: 0 | L197: 0.1362408089
A198: =A197+Model!$C$48 -> 0.185 | B198: 1 | D198: 0.547732872 | F198: 0.547732872 | H198: 0.1377056293 | I198: 0.1373403722 | J198: 1 | L198: 0.1373403722
A199: =A198+Model!$C$48 -> 0.186 | B199: 1 | D199: 0.5465148868 | F199: 0.5465148868 | H199: 0.1382527532 | I199: 0 | J199: 0 | L199: 0.1373403722
A200: =A199+Model!$C$48 -> 0.187 | B200: 1 | D200: 0.5453048583 | F200: 0.5453048583 | H200: 0.138798663 | I200: 0.138435026 | J200: 1 | L200: 0.138435026
A201: =A200+Model!$C$48 -> 0.188 | B201: 1 | D201: 0.5441027018 | F201: 0.5441027018 | H201: 0.1393433668 | I201: 0 | J201: 0 | L201: 0.138435026
A202: =A201+Model!$C$48 -> 0.189 | B202: 1 | D202: 0.5429083342 | F202: 0.5429083342 | H202: 0.1398868723 | I202: 0.1395248342 | J202: 1 | L202: 0.1395248342
A203: =A202+Model!$C$48 -> 0.19 | B203: 1 | D203: 0.5417216734 | F203: 0.5417216734 | H203: 0.1404291873 | I203: 0 | J203: 0 | L203: 0.1395248342
A204: =A203+Model!$C$48 -> 0.191 | B204: 1 | D204: 0.5405426387 | F204: 0.5405426387 | H204: 0.1409703195 | I204: 0.1406098598 | J204: 1 | L204: 0.1406098598
A205: =A204+Model!$C$48 -> 0.192 | B205: 1 | D205: 0.5393711501 | F205: =B205*D205 -> 0.5393711501 | H205: 0.1415102764 | I205: 0 | J205: 0 | L205: 0.1406098598
A206: =A205+Model!$C$48 -> 0.193 | B206: =ERF($B$10/SQRT(A206)) -> 1 | D206: =IF($B$11>0,ERF($B$11/SQRT(A206)),-ERF(-$B$11/SQRT(A206))) -> 0.5382071292 | F206: 0.5382071292 | H206: =0.5*(F206+F205)*(A206-A205)+H205 -> 0.1420490655 | I206: 0.1416901641 | J206: 1 | L206: 0.1416901641
A207: =A206+Model!$C$48 -> 0.194 | B207: 1 | D207: 0.5370504985 | F207: 0.5370504985 | H207: 0.1425866943 | I207: 0 | J207: =IF(J206=1,0,1) -> 0 | L207: 0.1416901641
A208: =A207+Model!$C$48 -> 0.195 | B208: 1 | D208: 0.5359011816 | F208: 0.5359011816 | H208: 0.1431231702 | I208: 0.1427658073 | J208: 1 | L208: 0.1427658073
A209: =A208+Model!$C$48 -> 0.196 | B209: 1 | D209: 0.5347591032 | F209: 0.5347591032 | H209: 0.1436585003 | I209: =(I207+((A209-A208)/3)*(4*F207+2*F208))*J209 -> 0 | J209: 0 | L209: =IF(J209=1,I209,I208) -> 0.1427658073
... 805 more rows

Sheet ps3 (hidden)
A10: a | B10: =(Results!$B$9-Model!$G$48)/(SQRT(4*Model!$G$50*Results!B$11)) -> 2.286026108
A11: b | B11: =(Results!$B$10+Model!$G$49)/(SQRT(4*Model!$G$50*Results!B$11)) -> 0.2286026108
A12: t | B12: erf(a/sqrt(t)) | D12: erf(b/sqrt(t)) | F12: integrand | H12: trapezoidal integral O(h^2) | I12: Simpson integral O(h^4) | J12: kount | L12: Simpson total Sum
A13: 0 | B13: 1 | D13: 1 | F13: =B13*D13 -> 1 | H13: 0 | I13: 0
A14: =Model!$C$48 -> 0.001 | B14: =IF($B$10>0,ERF($B$10/SQRT(A14)),-ERF(-$B$10/SQRT(A14))) -> 1 | D14: =ERF($B$11/SQRT(A14)) -> 1 | F14: 1 | H14: =0.5*(F14+F13)*(A14-A13)+H13 -> 0.001 | J14: 1
A15: =A14+Model!$C$48 -> 0.002 | B15: 1 | D15: 1 | F15: 1 | H15: 0.002 | J15: =IF(J14=1,0,1) -> 0
A16: =A15+Model!$C$48 -> 0.003 | B16: 1 | D16: 0.9999999964 | F16: 0.9999999964 | H16: 0.002999999998 | I16: =(I13+((A16-A15)/3)*(F13+4*F14+2*F15))*J16 -> 0.002333333333 | J16: 1 | L16: =IF(J16=1,I16,I15) -> 0.002333333333
A17: =A16+Model!$C$48 -> 0.004 | B17: 1 | D17: 0.9999996807 | F17: 0.9999996807 | H17: 0.003999999837 | I17: =(I15+((A17-A16)/3)*(4*F15+2*F16))*J17 -> 0 | J17: 0 | L17: =IF(J17=1,I17,I16) -> 0.002333333333
A18: =A17+Model!$C$48 -> 0.005 | B18: 1 | D18: 0.9999951703 | F18: 0.9999951703 | H18: 0.004999997262 | I18: 0.004333333116 | J18: 1 | L18: 0.004333333116
A19: =A18+Model!$C$48 -> 0.006 | B19: 1 | D19: 0.9999700299 | F19: 0.9999700299 | H19: 0.005999979862 | I19: 0 | J19: 0 | L19: 0.004333333116
A20: =A19+Model!$C$48 -> 0.007 | B20: 1 | D20: 0.9998884956 | F20: 0.9998884956 | H20: 0.006999909125 | I20: 0.006333306696 | J20: 1 | L20: 0.006333306696
A21: =A20+Model!$C$48 -> 0.008 | B21: 1 | D21: 0.9996991008 | F21: 0.9996991008 | H21: 0.007999702923 | I21: 0 | J21: 0 | L21: 0.006333306696
A22: =A21+Model!$C$48 -> 0.009 | B22: 1 | D22: 0.9993451269 | F22: 0.9993451269 | H22: 0.008999225037 | I22: 0.008332957424 | J22: 1 | L22: 0.008332957424
A23: =A22+Model!$C$48 -> 0.01 | B23: 1 | D23: 0.9987747204 | F23: 0.9987747204 | H23: 0.009998284961 | I23: 0 | J23: 0 | L23: 0.008332957424
A24: =A23+Model!$C$48 -> 0.011 | B24: 1 | D24: 0.9979471439 | F24: 0.9979471439 | H24: 0.01099664589 | I24: 0.01033126741 | J24: 1 | L24: 0.01033126741
A25: =A24+Model!$C$48 -> 0.012 | B25: 1 | D25: 0.996835063 | F25: 0.996835063 | H25: 0.011994037 | I25: 0 | J25: 0 | L25: 0.01033126741
A26: =A25+Model!$C$48 -> 0.013 | B26: 1 | D26: 0.9954241174 | F26: 0.9954241174 | H26: 0.01299016659 | I26: 0.01232642031 | J26: 1 | L26: 0.01232642031
A27: =A26+Model!$C$48 -> 0.014 | B27: 1 | D27: 0.9937110701 | F27: 0.9937110701 | H27: 0.01398473418 | I27: 0 | J27: 0 | L27: 0.01232642031
A28: =A27+Model!$C$48 -> 0.015 | B28: 1 | D28: 0.9917014575 | F28: 0.9917014575 | H28: 0.01497744044 | I28: 0.01431612651 | J28: 1 | L28: 0.01431612651
A29: =A28+Model!$C$48 -> 0.016 | B29: 1 | D29: 0.9894072717 | F29: 0.9894072717 | H29: 0.01596799481 | I29: 0 | J29: 0 | L29: 0.01431612651
A30: =A29+Model!$C$48 -> 0.017 | B30: 1 | D30: 0.9868449299 | F30: 0.9868449299 | H30: 0.01695612091 | I30: 0.01629799997 | J30: 1 | L30: 0.01629799997
A31: =A30+Model!$C$48 -> 0.018 | B31: 1 | D31: 0.9840336177 | F31: 0.9840336177 | H31: 0.01794156018 | I31: 0 | J31: 0 | L31: 0.01629799997
A32: =A31+Model!$C$48 -> 0.019 | B32: 1 | D32: 0.9809940016 | F32: 0.9809940016 | H32: 0.01892407399 | I32: 0.01826981562 | J32: 1 | L32: 0.01826981562
A33: =A32+Model!$C$48 -> 0.02 | B33: 1 | D33: 0.9777472687 | F33: 0.9777472687 | H33: 0.01990344463 | I33: 0 | J33: 0 | L33: 0.01826981562
A34: =A33+Model!$C$48 -> 0.021 | B34: 1 | D34: 0.9743144356 | F34: 0.9743144356 | H34: 0.02087947548 | I34: 0.02022963913 | J34: 1 | L34: 0.02022963913
A35: =A34+Model!$C$48 -> 0.022 | B35: 1 | D35: 0.9707158702 | F35: 0.9707158702 | H35: 0.02185199063 | I35: 0 | J35: 0 | L35: 0.02022963913
A36: =A35+Model!$C$48 -> 0.023 | B36: 1 | D36: 0.9669709786 | F36: 0.9669709786 | H36: 0.02282083406 | I36: 0.02217586896 | J36: 1 | L36: 0.02217586896
A37: =A36+Model!$C$48 -> 0.024 | B37: 1 | D37: 0.9630980128 | F37: 0.9630980128 | H37: 0.02378586855 | I37: 0 | J37: 0 | L37: 0.02217586896
A38: =A37+Model!$C$48 -> 0.025 | B38: 1 | D38: 0.9591139691 | F38: 0.9591139691 | H38: 0.02474697454 | I38: 0.02410722894 | J38: 1 | L38: 0.02410722894
A39: =A38+Model!$C$48 -> 0.026 | B39: 1 | D39: 0.9550345507 | F39: 0.9550345507 | H39: 0.0257040488 | I39: 0 | J39: 0 | L39: 0.02410722894
A40: =A39+Model!$C$48 -> 0.027 | B40: 1 | D40: 0.9508741749 | F40: 0.9508741749 | H40: 0.02665700317 | I40: 0.02602273727 | J40: 1 | L40: 0.02602273727
A41: =A40+Model!$C$48 -> 0.028 | B41: 1 | D41: 0.94664601 | F41: 0.94664601 | H41: 0.02760576326 | I41: 0 | J41: 0 | L41: 0.02602273727
A42: =A41+Model!$C$48 -> 0.029 | B42: 1 | D42: 0.9423620332 | F42: 0.9423620332 | H42: 0.02855026728 | I42: 0.02792166684 | J42: 1 | L42: 0.02792166684
A43: =A42+Model!$C$48 -> 0.03 | B43: 1 | D43: 0.9380330987 | F43: 0.9380330987 | H43: 0.02949046485 | I43: 0 | J43: 0 | L43: 0.02792166684
A44: =A43+Model!$C$48 -> 0.031 | B44: 1 | D44: 0.933669013 | F44: 0.933669013 | H44: 0.0304263159 | I44: 0.02980350495 | J44: 1 | L44: 0.02980350495
A45: =A44+Model!$C$48 -> 0.032 | B45: 1 | D45: 0.9292786123 | F45: 0.9292786123 | H45: 0.03135778972 | I45: 0 | J45: 0 | L45: 0.02980350495
A46: =A45+Model!$C$48 -> 0.033 | B46: 1 | D46: 0.9248698388 | F46: 0.9248698388 | H46: 0.03228486394 | I46: 0.03166791604 | J46: 1 | L46: 0.03166791604
A47: =A46+Model!$C$48 -> 0.034 | B47: 1 | D47: 0.9204498156 | F47: 0.9204498156 | H47: 0.03320752377 | I47: 0 | J47: 0 | L47: 0.03166791604
A48: =A47+Model!$C$48 -> 0.035 | B48: 1 | D48: 0.9160249174 | F48: 0.9160249174 | H48: 0.03412576113 | I48: 0.03351470904 | J48: 1 | L48: 0.03351470904
A49: =A48+Model!$C$48 -> 0.036 | B49: 1 | D49: 0.9116008378 | F49: 0.9116008378 | H49: 0.03503957401 | I49: 0 | J49: 0 | L49: 0.03351470904
A50: =A49+Model!$C$48 -> 0.037 | B50: 1 | D50: 0.9071826512 | F50: 0.9071826512 | H50: 0.03594896576 | I50: 0.03534380949 | J50: 1 | L50: 0.03534380949
A51: =A50+Model!$C$48 -> 0.038 | B51: 1 | D51: 0.9027748709 | F51: 0.9027748709 | H51: 0.03685394452 | I51: 0 | J51: 0 | L51: 0.03534380949
A52: =A51+Model!$C$48 -> 0.039 | B52: 1 | D52: 0.8983815021 | F52: 0.8983815021 | H52: 0.0377545227 | I52: 0.03715523627 | J52: 1 | L52: 0.03715523627
A53: =A52+Model!$C$48 -> 0.04 | B53: 1 | D53: 0.8940060908 | F53: 0.8940060908 | H53: 0.0386507165 | I53: 0 | J53: 0 | L53: 0.03715523627
A54: =A53+Model!$C$48 -> 0.041 | B54: 1 | D54: 0.889651768 | F54: 0.889651768 | H54: 0.03954254543 | I54: 0.03894908233 | J54: 1 | L54: 0.03894908233
A55: =A54+Model!$C$48 -> 0.042 | B55: 1 | D55: 0.8853212907 | F55: 0.8853212907 | H55: 0.04043003196 | I55: 0 | J55: 0 | L55: 0.03894908233
A56: =A55+Model!$C$48 -> 0.043 | B56: 1 | D56: 0.8810170783 | F56: 0.8810170783 | H56: 0.04131320114 | I56: 0.04072549888 | J56: 1 | L56: 0.04072549888
A57: =A56+Model!$C$48 -> 0.044 | B57: 1 | D57: 0.8767412464 | F57: 0.8767412464 | H57: 0.04219208031 | I57: 0 | J57: 0 | L57: 0.04072549888
A58: =A57+Model!$C$48 -> 0.045 | B58: 1 | D58: 0.8724956366 | F58: 0.8724956366 | H58: 0.04306669875 | I58: 0.04248468249 | J58: 1 | L58: 0.04248468249
A59: =A58+Model!$C$48 -> 0.046 | B59: 1 | D59: 0.8682818444 | F59: 0.8682818444 | H59: 0.04393708749 | I59: 0 | J59: 0 | L59: 0.04248468249
A60: =A59+Model!$C$48 -> 0.047 | B60: 1 | D60: 0.8641012437 | F60: 0.8641012437 | H60: 0.04480327903 | I60: 0.04422686456 | J60: 1 | L60: 0.04422686456
A61: =A60+Model!$C$48 -> 0.048 | B61: 1 | D61: 0.8599550091 | F61: 0.8599550091 | H61: 0.04566530716 | I61: 0 | J61: 0 | L61: 0.04422686456
A62: =A61+Model!$C$48 -> 0.049 | B62: 1 | D62: 0.8558441361 | F62: 0.8558441361 | H62: 0.04652320673 | I62: 0.0459523029 | J62: 1 | L62: 0.0459523029
A63: =A62+Model!$C$48 -> 0.05 | B63: 1 | D63: 0.8517694597 | F63: 0.8517694597 | H63: 0.04737701353 | I63: 0 | J63: 0 | L63: 0.0459523029
A64: =A63+Model!$C$48 -> 0.051 | B64: 1 | D64: 0.8477316703 | F64: 0.8477316703 | H64: 0.04822676409 | I64: 0.04766127472 | J64: 1 | L64: 0.04766127472
A65: =A64+Model!$C$48 -> 0.052 | B65: 1 | D65: 0.8437313289 | F65: 0.8437313289 | H65: 0.04907249559 | I65: 0 | J65: 0 | L65: 0.04766127472
A66: =A65+Model!$C$48 -> 0.053 | B66: 1 | D66: 0.8397688806 | F66: 0.8397688806 | H66: 0.0499142457 | I66: 0.04935407116 | J66: 1 | L66: 0.04935407116
A67: =A66+Model!$C$48 -> 0.054 | B67: 1 | D67: 0.8358446663 | F67: 0.8358446663 | H67: 0.05075205247 | I67: 0 | J67: 0 | L67: 0.04935407116
A68: =A67+Model!$C$48 -> 0.055 | B68: 1 | D68: 0.8319589338 | F68: 0.8319589338 | H68: 0.05158595427 | I68: 0.05103099278 | J68: 1 | L68: 0.05103099278
A69: =A68+Model!$C$48 -> 0.056 | B69: 1 | D69: 0.8281118478 | F69: 0.8281118478 | H69: 0.05241598966 | I69: 0 | J69: 0 | L69: 0.05103099278
A70: =A69+Model!$C$48 -> 0.057 | B70: 1 | D70: 0.8243034983 | F70: 0.8243034983 | H70: 0.05324219734 | I70: 0.05269234593 | J70: 1 | L70: 0.05269234593
A71: =A70+Model!$C$48 -> 0.058 | B71: 1 | D71: 0.8205339092 | F71: 0.8205339092 | H71: 0.05406461604 | I71: 0 | J71: 0 | L71: 0.05269234593
A72: =A71+Model!$C$48 -> 0.059 | B72: 1 | D72: 0.8168030451 | F72: 0.8168030451 | H72: 0.05488328452 | I72: 0.05433843986 | J72: 1 | L72: 0.05433843986
A73: =A72+Model!$C$48 -> 0.06 | B73: 1 | D73: 0.813110818 | F73: 0.813110818 | H73: 0.05569824145 | I73: 0 | J73: 0 | L73: 0.05433843986
A74: =A73+Model!$C$48 -> 0.061 | B74: 1 | D74: 0.8094570931 | F74: 0.8094570931 | H74: 0.0565095254 | I74: 0.05596958447 | J74: 1 | L74: 0.05596958447
A75: =A74+Model!$C$48 -> 0.062 | B75: 1 | D75: 0.8058416941 | F75: 0.8058416941 | H75: 0.0573171748 | I75: 0 | J75: 0 | L75: 0.05596958447
A76: =A75+Model!$C$48 -> 0.063 | B76: 1 | D76: 0.802264408 | F76: 0.802264408 | H76: 0.05812122785 | I76: 0.05758608839 | J76: 1 | L76: 0.05758608839
A77: =A76+Model!$C$48 -> 0.064 | B77: 1 | D77: 0.7987249895 | F77: =B77*D77 -> 0.7987249895 | H77: 0.05892172255 | I77: 0 | J77: 0 | L77: 0.05758608839
A78: =A77+Model!$C$48 -> 0.065 | B78: =IF($B$10>0,ERF($B$10/SQRT(A78)),-ERF(-$B$10/SQRT(A78))) -> 1 | D78: =ERF($B$11/SQRT(A78)) -> 0.7952231649 | F78: 0.7952231649 | H78: =0.5*(F78+F77)*(A78-A77)+H77 -> 0.05971869662 | I78: 0.05918825759 | J78: 1 | L78: 0.05918825759
A79: =A78+Model!$C$48 -> 0.066 | B79: 1 | D79: 0.7917586354 | F79: 0.7917586354 | H79: 0.06051218752 | I79: 0 | J79: =IF(J78=1,0,1) -> 0 | L79: 0.05918825759
A80: =A79+Model!$C$48 -> 0.067 | B80: 1 | D80: 0.7883310805 | F80: 0.7883310805 | H80: 0.06130223238 | I80: 0.06077639424 | J80: 1 | L80: 0.06077639424
A81: =A80+Model!$C$48 -> 0.068 | B81: 1 | D81: 0.7849401609 | F81: 0.7849401609 | H81: 0.062088868 | I81: =(I79+((A81-A80)/3)*(4*F79+2*F80))*J81 -> 0 | J81: 0 | L81: =IF(J81=1,I81,I80) -> 0.06077639424
A82: =A81+Model!$C$48 -> 0.069 | B82: 1 | D82: 0.7815855208 | F82: 0.7815855208 | H82: 0.06287213084 | I82: 0.06235079578 | J82: 1 | L82: 0.06235079578
A83: =A82+Model!$C$48 -> 0.07 | B83: 1 | D83: 0.7782667905 | F83: 0.7782667905 | H83: 0.063652057 | I83: 0 | J83: 0 | L83: 0.06235079578
A84: =A83+Model!$C$48 -> 0.071 | B84: 1 | D84: 0.7749835884 | F84: 0.7749835884 | H84: 0.06442868219 | I84: 0.06391175434 | J84: 1 | L84: 0.06391175434
A85: =A84+Model!$C$48 -> 0.072 | B85: 1 | D85: 0.771735523 | F85: 0.771735523 | H85: 0.06520204174 | I85: 0 | J85: 0 | L85: 0.06391175434
A86: =A85+Model!$C$48 -> 0.073 | B86: 1 | D86: 0.7685221942 | F86: 0.7685221942 | H86: 0.0659721706 | I86: 0.06545955614 | J86: 1 | L86: 0.06545955614
A87: =A86+Model!$C$48 -> 0.074 | B87: 1 | D87: 0.7653431956 | F87: 0.7653431956 | H87: 0.0667391033 | I87: 0 | J87: 0 | L87: 0.06545955614
A88: =A87+Model!$C$48 -> 0.075 | B88: 1 | D88: 0.7621981149 | F88: 0.7621981149 | H88: 0.06750287395 | I88: 0.06699448119 | J88: 1 | L88: 0.06699448119
A89: =A88+Model!$C$48 -> 0.076 | B89: 1 | D89: 0.759086536 | F89: 0.759086536 | H89: 0.06826351628 | I89: 0 | J89: 0 | L89: 0.06699448119
A90: =A89+Model!$C$48 -> 0.077 | B90: 1 | D90: 0.7560080397 | F90: 0.7560080397 | H90: 0.06902106357 | I90: 0.06851680304 | J90: 1 | L90: 0.06851680304
A91: =A90+Model!$C$48 -> 0.078 | B91: 1 | D91: 0.7529622047 | F91: 0.7529622047 | H91: 0.06977554869 | I91: 0 | J91: 0 | L91: 0.06851680304
A92: =A91+Model!$C$48 -> 0.079 | B92: 1 | D92: 0.7499486086 | F92: 0.7499486086 | H92: 0.0705270041 | I92: 0.07002678856 | J92: 1 | L92: 0.07002678856
A93: =A92+Model!$C$48 -> 0.08 | B93: 1 | D93: 0.7469668287 | F93: 0.7469668287 | H93: 0.07127546181 | I93: 0 | J93: 0 | L93: 0.07002678856
A94: =A93+Model!$C$48 -> 0.081 | B94: 1 | D94: 0.7440164427 | F94: 0.7440164427 | H94: 0.07202095345 | I94: 0.07152469792 | J94: 1 | L94: 0.07152469792
A95: =A94+Model!$C$48 -> 0.082 | B95: 1 | D95: 0.7410970293 | F95: 0.7410970293 | H95: 0.07276351019 | I95: 0 | J95: 0 | L95: 0.07152469792
A96: =A95+Model!$C$48 -> 0.083 | B96: 1 | D96: 0.7382081687 | F96: 0.7382081687 | H96: 0.07350316279 | I96: 0.07301078453 | J96: 1 | L96: 0.07301078453
A97: =A96+Model!$C$48 -> 0.084 | B97: 1 | D97: 0.7353494433 | F97: 0.7353494433 | H97: 0.07423994159 | I97: 0 | J97: 0 | L97: 0.07301078453
A98: =A97+Model!$C$48 -> 0.085 | B98: 1 | D98: 0.7325204382 | F98: 0.7325204382 | H98: 0.07497387653 | I98: 0.07448529505 | J98: 1 | L98: 0.07448529505
A99: =A98+Model!$C$48 -> 0.086 | B99: 1 | D99: 0.7297207411 | F99: 0.7297207411 | H99: 0.07570499712 | I99: 0 | J99: 0 | L99: 0.07448529505
A100: =A99+Model!$C$48 -> 0.087 | B100: 1 | D100: 0.7269499434 | F100: 0.7269499434 | H100: 0.07643333246 | I100: 0.07594846947 | J100: 1 | L100: 0.07594846947
A101: =A100+Model!$C$48 -> 0.088 | B101: 1 | D101: 0.7242076397 | F101: 0.7242076397 | H101: 0.07715891126 | I101: 0 | J101: 0 | L101: 0.07594846947
A102: =A101+Model!$C$48 -> 0.089 | B102: 1 | D102: 0.721493429 | F102: 0.721493429 | H102: 0.07788176179 | I102: 0.07740054115 | J102: 1 | L102: 0.07740054115
A103: =A102+Model!$C$48 -> 0.09 | B103: 1 | D103: 0.7188069138 | F103: 0.7188069138 | H103: 0.07860191196 | I103: 0 | J103: 0 | L103: 0.07740054115
A104: =A103+Model!$C$48 -> 0.091 | B104: 1 | D104: 0.7161477015 | F104: 0.7161477015 | H104: 0.07931938927 | I104: 0.078841737 | J104: 1 | L104: 0.078841737
A105: =A104+Model!$C$48 -> 0.092 | B105: 1 | D105: 0.7135154036 | F105: 0.7135154036 | H105: 0.08003422082 | I105: 0 | J105: 0 | L105: 0.078841737
A106: =A105+Model!$C$48 -> 0.093 | B106: 1 | D106: 0.7109096364 | F106: 0.7109096364 | H106: 0.08074643334 | I106: 0.08027227754 | J106: 1 | L106: 0.08027227754
A107: =A106+Model!$C$48 -> 0.094 | B107: 1 | D107: 0.708330021 | F107: 0.708330021 | H107: 0.08145605317 | I107: 0 | J107: 0 | L107: 0.08027227754
A108: =A107+Model!$C$48 -> 0.095 | B108: 1 | D108: 0.7057761832 | F108: 0.7057761832 | H108: 0.08216310627 | I108: 0.08169237706 | J108: 1 | L108: 0.08169237706
A109: =A108+Model!$C$48 -> 0.096 | B109: 1 | D109: 0.703247754 | F109: 0.703247754 | H109: 0.08286761824 | I109: 0 | J109: 0 | L109: 0.08169237706
A110: =A109+Model!$C$48 -> 0.097 | B110: 1 | D110: 0.7007443693 | F110: 0.7007443693 | H110: 0.0835696143 | I110: 0.08310224381 | J110: 1 | L110: 0.08310224381
A111: =A110+Model!$C$48 -> 0.098 | B111: 1 | D111: 0.6982656701 | F111: 0.6982656701 | H111: 0.08426911932 | I111: 0 | J111: 0 | L111: 0.08310224381
A112: =A111+Model!$C$48 -> 0.099 | B112: 1 | D112: 0.6958113024 | F112: 0.6958113024 | H112: 0.08496615781 | I112: 0.08450208008 | J112: 1 | L112: 0.08450208008
A113: =A112+Model!$C$48 -> 0.1 | B113: 1 | D113: 0.6933809174 | F113: 0.6933809174 | H113: 0.08566075392 | I113: 0 | J113: 0 | L113: 0.08450208008
A114: =A113+Model!$C$48 -> 0.101 | B114: 1 | D114: 0.6909741715 | F114: 0.6909741715 | H114: 0.08635293146 | I114: 0.08589208243 | J114: 1 | L114: 0.08589208243
A115: =A114+Model!$C$48 -> 0.102 | B115: 1 | D115: 0.6885907264 | F115: 0.6885907264 | H115: 0.08704271391 | I115: 0 | J115: 0 | L115: 0.08589208243
A116: =A115+Model!$C$48 -> 0.103 | B116: 1 | D116: 0.6862302486 | F116: 0.6862302486 | H116: 0.0877301244 | I116: 0.08727244181 | J116: 1 | L116: 0.08727244181
A117: =A116+Model!$C$48 -> 0.104 | B117: 1 | D117: 0.6838924099 | F117: 0.6838924099 | H117: 0.08841518573 | I117: 0 | J117: 0 | L117: 0.08727244181
A118: =A117+Model!$C$48 -> 0.105 | B118: 1 | D118: 0.6815768874 | F118: 0.6815768874 | H118: 0.08909792038 | I118: 0.08864334375 | J118: 1 | L118: 0.08864334375
A119: =A118+Model!$C$48 -> 0.106 | B119: 1 | D119: 0.6792833629 | F119: 0.6792833629 | H119: 0.0897783505 | I119: 0 | J119: 0 | L119: 0.08864334375
A120: =A119+Model!$C$48 -> 0.107 | B120: 1 | D120: 0.6770115236 | F120: 0.6770115236 | H120: 0.09045649795 | I120: 0.09000496851 | J120: 1 | L120: 0.09000496851
A121: =A120+Model!$C$48 -> 0.108 | B121: 1 | D121: 0.6747610616 | F121: 0.6747610616 | H121: 0.09113238424 | I121: 0 | J121: 0 | L121: 0.09000496851
A122: =A121+Model!$C$48 -> 0.109 | B122: 1 | D122: 0.6725316738 | F122: 0.6725316738 | H122: 0.09180603061 | I122: 0.09135749125 | J122: 1 | L122: 0.09135749125
A123: =A122+Model!$C$48 -> 0.11 | B123: 1 | D123: 0.6703230624 | F123: 0.6703230624 | H123: 0.09247745797 | I123: 0 | J123: 0 | L123: 0.09135749125
A124: =A123+Model!$C$48 -> 0.111 | B124: 1 | D124: 0.668134934 | F124: 0.668134934 | H124: 0.09314668697 | I124: 0.09270108219 | J124: 1 | L124: 0.09270108219
A125: =A124+Model!$C$48 -> 0.112 | B125: 1 | D125: 0.6659670003 | F125: 0.6659670003 | H125: 0.09381373794 | I125: 0 | J125: 0 | L125: 0.09270108219
A126: =A125+Model!$C$48 -> 0.113 | B126: 1 | D126: 0.6638189779 | F126: 0.6638189779 | H126: 0.09447863093 | I126: 0.09403590677 | J126: 1 | L126: 0.09403590677
A127: =A126+Model!$C$48 -> 0.114 | B127: 1 | D127: 0.6616905877 | F127: 0.6616905877 | H127: 0.09514138571 | I127: 0 | J127: 0 | L127: 0.09403590677
A128: =A127+Model!$C$48 -> 0.115 | B128: 1 | D128: 0.6595815556 | F128: 0.6595815556 | H128: 0.09580202178 | I128: 0.0953621258 | J128: 1 | L128: 0.0953621258
A129: =A128+Model!$C$48 -> 0.116 | B129: 1 | D129: 0.6574916118 | F129: 0.6574916118 | H129: 0.09646055837 | I129: 0 | J129: 0 | L129: 0.0953621258
A130: =A129+Model!$C$48 -> 0.117 | B130: 1 | D130: 0.6554204913 | F130: 0.6554204913 | H130: 0.09711701442 | I130: 0.09667989561 | J130: 1 | L130: 0.09667989561
A131: =A130+Model!$C$48 -> 0.118 | B131: 1 | D131: 0.6533679333 | F131: 0.6533679333 | H131: 0.09777140863 | I131: 0 | J131: 0 | L131: 0.09667989561
A132: =A131+Model!$C$48 -> 0.119 | B132: 1 | D132: 0.6513336815 | F132: 0.6513336815 | H132: 0.09842375944 | I132: 0.09798936822 | J132: 1 | L132: 0.09798936822
A133: =A132+Model!$C$48 -> 0.12 | B133: 1 | D133: 0.649317484 | F133: 0.649317484 | H133: 0.09907408502 | I133: 0 | J133: 0 | L133: 0.09798936822
A134: =A133+Model!$C$48 -> 0.121 | B134: 1 | D134: 0.6473190929 | F134: 0.6473190929 | H134: 0.09972240331 | I134: 0.09929069145 | J134: 1 | L134: 0.09929069145
A135: =A134+Model!$C$48 -> 0.122 | B135: 1 | D135: 0.6453382647 | F135: 0.6453382647 | H135: 0.100368732 | I135: 0 | J135: 0 | L135: 0.09929069145
A136: =A135+Model!$C$48 -> 0.123 | B136: 1 | D136: 0.64337476 | F136: 0.64337476 | H136: 0.1010130885 | I136: 0.1005840091 | J136: 1 | L136: 0.1005840091
A137: =A136+Model!$C$48 -> 0.124 | B137: 1 | D137: 0.6414283434 | F137: 0.6414283434 | H137: 0.1016554901 | I137: 0 | J137: 0 | L137: 0.1005840091
A138: =A137+Model!$C$48 -> 0.125 | B138: 1 | D138: 0.6394987835 | F138: 0.6394987835 | H138: 0.1022959536 | I138: 0.101869461 | J138: 1 | L138: 0.101869461
A139: =A138+Model!$C$48 -> 0.126 | B139: 1 | D139: 0.6375858527 | F139: 0.6375858527 | H139: 0.1029344959 | I139: 0 | J139: 0 | L139: 0.101869461
A140: =A139+Model!$C$48 -> 0.127 | B140: 1 | D140: 0.6356893275 | F140: 0.6356893275 | H140: 0.1035711335 | I140: 0.1031471833 | J140: 1 | L140: 0.1031471833
A141: =A140+Model!$C$48 -> 0.128 | B141: 1 | D141: 0.6338089879 | F141: =B141*D141 -> 0.6338089879 | H141: 0.1042058827 | I141: 0 | J141: 0 | L141: 0.1031471833
A142: =A141+Model!$C$48 -> 0.129 | B142: =IF($B$10>0,ERF($B$10/SQRT(A142)),-ERF(-$B$10/SQRT(A142))) -> 1 | D142: =ERF($B$11/SQRT(A142)) -> 0.6319446178 | F142: 0.6319446178 | H142: =0.5*(F142+F141)*(A142-A141)+H141 -> 0.1048387595 | I142: 0.1044173084 | J142: 1 | L142: 0.1044173084
A143: =A142+Model!$C$48 -> 0.13 | B143: 1 | D143: 0.6300960047 | F143: 0.6300960047 | H143: 0.1054697798 | I143: 0 | J143: =IF(J142=1,0,1) -> 0 | L143: 0.1044173084
A144: =A143+Model!$C$48 -> 0.131 | B144: 1 | D144: 0.6282629397 | F144: 0.6282629397 | H144: 0.1060989593 | I144: 0.1056799652 | J144: 1 | L144: 0.1056799652
A145: =A144+Model!$C$48 -> 0.132 | B145: 1 | D145: 0.6264452175 | F145: 0.6264452175 | H145: 0.1067263133 | I145: =(I143+((A145-A144)/3)*(4*F143+2*F144))*J145 -> 0 | J145: 0 | L145: =IF(J145=1,I145,I144) -> 0.1056799652
A146: =A145+Model!$C$48 -> 0.133 | B146: 1 | D146: 0.624642636 | F146: 0.624642636 | H146: 0.1073518573 | I146: 0.1069352793 | J146: 1 | L146: 0.1069352793
A147: =A146+Model!$C$48 -> 0.134 | B147: 1 | D147: 0.6228549968 | F147: 0.6228549968 | H147: 0.1079756061 | I147: 0 | J147: 0 | L147: 0.1069352793
A148: =A147+Model!$C$48 -> 0.135 | B148: 1 | D148: 0.6210821047 | F148: 0.6210821047 | H148: 0.1085975746 | I148: 0.1081833728 | J148: 1 | L148: 0.1081833728
A149: =A148+Model!$C$48 -> 0.136 | B149: 1 | D149: 0.6193237677 | F149: 0.6193237677 | H149: 0.1092177776 | I149: 0 | J149: 0 | L149: 0.1081833728
A150: =A149+Model!$C$48 -> 0.137 | B150: 1 | D150: 0.6175797972 | F150: 0.6175797972 | H150: 0.1098362294 | I150: 0.1094243648 | J150: 1 | L150: 0.1094243648
A151: =A150+Model!$C$48 -> 0.138 | B151: 1 | D151: 0.6158500075 | F151: 0.6158500075 | H151: 0.1104529443 | I151: 0 | J151: 0 | L151: 0.1094243648
A152: =A151+Model!$C$48 -> 0.139 | B152: 1 | D152: 0.6141342163 | F152: 0.6141342163 | H152: 0.1110679364 | I152: 0.1106583712 | J152: 1 | L152: 0.1106583712
A153: =A152+Model!$C$48 -> 0.14 | B153: 1 | D153: 0.6124322441 | F153: 0.6124322441 | H153: 0.1116812196 | I153: 0 | J153: 0 | L153: 0.1106583712
A154: =A153+Model!$C$48 -> 0.141 | B154: 1 | D154: 0.6107439145 | F154: 0.6107439145 | H154: 0.1122928077 | I154: 0.1118855049 | J154: 1 | L154: 0.1118855049
A155: =A154+Model!$C$48 -> 0.142 | B155: 1 | D155: 0.6090690539 | F155: 0.6090690539 | H155: 0.1129027142 | I155: 0 | J155: 0 | L155: 0.1118855049
A156: =A155+Model!$C$48 -> 0.143 | B156: 1 | D156: 0.6074074918 | F156: 0.6074074918 | H156: 0.1135109524 | I156: 0.1131058762 | J156: 1 | L156: 0.1131058762
A157: =A156+Model!$C$48 -> 0.144 | B157: 1 | D157: 0.6057590604 | F157: 0.6057590604 | H157: 0.1141175357 | I157: 0 | J157: 0 | L157: 0.1131058762
A158: =A157+Model!$C$48 -> 0.145 | B158: 1 | D158: 0.6041235945 | F158: 0.6041235945 | H158: 0.114722477 | I158: 0.1143195922 | J158: 1 | L158: 0.1143195922
A159: =A158+Model!$C$48 -> 0.146 | B159: 1 | D159: 0.6025009319 | F159: 0.6025009319 | H159: 0.1153257893 | I159: 0 | J159: 0 | L159: 0.1143195922
A160: =A159+Model!$C$48 -> 0.147 | B160: 1 | D160: 0.6008909128 | F160: 0.6008909128 | H160: 0.1159274852 | I160: 0.1155267576 | J160: 1 | L160: 0.1155267576
A161: =A160+Model!$C$48 -> 0.148 | B161: 1 | D161: 0.5992933803 | F161: 0.5992933803 | H161: 0.1165275774 | I161: 0 | J161: 0 | L161: 0.1155267576
A162: =A161+Model!$C$48 -> 0.149 | B162: 1 | D162: 0.5977081797 | F162: 0.5977081797 | H162: 0.1171260782 | I162: 0.1167274744 | J162: 1 | L162: 0.1167274744
A163: =A162+Model!$C$48 -> 0.15 | B163: 1 | D163: 0.5961351592 | F163: 0.5961351592 | H163: 0.1177229998 | I163: 0 | J163: 0 | L163: 0.1167274744
A164: =A163+Model!$C$48 -> 0.151 | B164: 1 | D164: 0.5945741691 | F164: 0.5945741691 | H164: 0.1183183545 | I164: 0.1179218421 | J164: 1 | L164: 0.1179218421
A165: =A164+Model!$C$48 -> 0.152 | B165: 1 | D165: 0.5930250625 | F165: 0.5930250625 | H165: 0.1189121541 | I165: 0 | J165: 0 | L165: 0.1179218421
A166: =A165+Model!$C$48 -> 0.153 | B166: 1 | D166: 0.5914876945 | F166: 0.5914876945 | H166: 0.1195044105 | I166: 0.1191099577 | J166: 1 | L166: 0.1191099577
A167: =A166+Model!$C$48 -> 0.154 | B167: 1 | D167: 0.5899619227 | F167: 0.5899619227 | H167: 0.1200951353 | I167: 0 | J167: 0 | L167: 0.1191099577
A168: =A167+Model!$C$48 -> 0.155 | B168: 1 | D168: 0.5884476072 | F168: 0.5884476072 | H168: 0.1206843401 | I168: 0.1202919159 | J168: 1 | L168: 0.1202919159
A169: =A168+Model!$C$48 -> 0.156 | B169: 1 | D169: 0.5869446099 | F169: 0.5869446099 | H169: 0.1212720362 | I169: 0 | J169: 0 | L169: 0.1202919159
A170: =A169+Model!$C$48 -> 0.157 | B170: 1 | D170: 0.5854527952 | F170: 0.5854527952 | H170: 0.1218582349 | I170: 0.1214678092 | J170: 1 | L170: 0.1214678092
A171: =A170+Model!$C$48 -> 0.158 | B171: 1 | D171: 0.5839720297 | F171: 0.5839720297 | H171: 0.1224429473 | I171: 0 | J171: 0 | L171: 0.1214678092
A172: =A171+Model!$C$48 -> 0.159 | B172: 1 | D172: 0.5825021818 | F172: 0.5825021818 | H172: 0.1230261844 | I172: 0.1226377276 | J172: 1 | L172: 0.1226377276
A173: =A172+Model!$C$48 -> 0.16 | B173: 1 | D173: 0.5810431223 | F173: 0.5810431223 | H173: 0.123607957 | I173: 0 | J173: 0 | L173: 0.1226377276
A174: =A173+Model!$C$48 -> 0.161 | B174: 1 | D174: 0.579594724 | F174: 0.579594724 | H174: 0.124188276 | I174: 0.1238017592 | J174: 1 | L174: 0.1238017592
A175: =A174+Model!$C$48 -> 0.162 | B175: 1 | D175: 0.5781568615 | F175: 0.5781568615 | H175: 0.1247671518 | I175: 0 | J175: 0 | L175: 0.1238017592
A176: =A175+Model!$C$48 -> 0.163 | B176: 1 | D176: 0.5767294115 | F176: 0.5767294115 | H176: 0.1253445949 | I176: 0.1249599901 | J176: 1 | L176: 0.1249599901
A177: =A176+Model!$C$48 -> 0.164 | B177: 1 | D177: 0.5753122527 | F177: 0.5753122527 | H177: 0.1259206157 | I177: 0 | J177: 0 | L177: 0.1249599901
A178: =A177+Model!$C$48 -> 0.165 | B178: 1 | D178: 0.5739052655 | F178: 0.5739052655 | H178: 0.1264952245 | I178: 0.1261125041 | J178: 1 | L178: 0.1261125041
A179: =A178+Model!$C$48 -> 0.166 | B179: 1 | D179: 0.5725083323 | F179: 0.5725083323 | H179: 0.1270684313 | I179: 0 | J179: 0 | L179: 0.1261125041
A180: =A179+Model!$C$48 -> 0.167 | B180: 1 | D180: 0.5711213373 | F180: 0.5711213373 | H180: 0.1276402461 | I180: 0.1272593834 | J180: 1 | L180: 0.1272593834
A181: =A180+Model!$C$48 -> 0.168 | B181: 1 | D181: 0.5697441665 | F181: 0.5697441665 | H181: 0.1282106789 | I181: 0 | J181: 0 | L181: 0.1272593834
A182: =A181+Model!$C$48 -> 0.169 | B182: 1 | D182: 0.5683767075 | F182: 0.5683767075 | H182: 0.1287797393 | I182: 0.1284007079 | J182: 1 | L182: 0.1284007079
A183: =A182+Model!$C$48 -> 0.17 | B183: 1 | D183: 0.5670188498 | F183: 0.5670188498 | H183: 0.1293474371 | I183: 0 | J183: 0 | L183: 0.1284007079
A184: =A183+Model!$C$48 -> 0.171 | B184: 1 | D184: 0.5656704845 | F184: 0.5656704845 | H184: 0.1299137817 | I184: 0.1295365561 | J184: 1 | L184: 0.1295365561
A185: =A184+Model!$C$48 -> 0.172 | B185: 1 | D185: 0.5643315045 | F185: 0.5643315045 | H185: 0.1304787827 | I185: 0 | J185: 0 | L185: 0.1295365561
A186: =A185+Model!$C$48 -> 0.173 | B186: 1 | D186: 0.5630018041 | F186: 0.5630018041 | H186: 0.1310424494 | I186: 0.1306670044 | J186: 1 | L186: 0.1306670044
A187: =A186+Model!$C$48 -> 0.174 | B187: 1 | D187: 0.5616812793 | F187: 0.5616812793 | H187: 0.1316047909 | I187: 0 | J187: 0 | L187: 0.1306670044
A188: =A187+Model!$C$48 -> 0.175 | B188: 1 | D188: 0.5603698278 | F188: 0.5603698278 | H188: 0.1321658165 | I188: 0.1317921277 | J188: 1 | L188: 0.1317921277
A189: =A188+Model!$C$48 -> 0.176 | B189: 1 | D189: 0.5590673486 | F189: 0.5590673486 | H189: 0.1327255351 | I189: 0 | J189: 0 | L189: 0.1317921277
A190: =A189+Model!$C$48 -> 0.177 | B190: 1 | D190: 0.5577737423 | F190: 0.5577737423 | H190: 0.1332839556 | I190: 0.132911999 | J190: 1 | L190: 0.132911999
A191: =A190+Model!$C$48 -> 0.178 | B191: 1 | D191: 0.5564889112 | F191: 0.5564889112 | H191: 0.133841087 | I191: 0 | J191: 0 | L191: 0.132911999
A192: =A191+Model!$C$48 -> 0.179 | B192: 1 | D192: 0.5552127587 | F192: 0.5552127587 | H192: 0.1343969378 | I192: 0.13402669 | J192: 1 | L192: 0.13402669
A193: =A192+Model!$C$48 -> 0.18 | B193: 1 | D193: 0.5539451898 | F193: 0.5539451898 | H193: 0.1349515168 | I193: 0 | J193: 0 | L193: 0.13402669
A194: =A193+Model!$C$48 -> 0.181 | B194: 1 | D194: 0.552686111 | F194: 0.552686111 | H194: 0.1355048324 | I194: 0.1351362704 | J194: 1 | L194: 0.1351362704
A195: =A194+Model!$C$48 -> 0.182 | B195: 1 | D195: 0.55143543 | F195: 0.55143543 | H195: 0.1360568932 | I195: 0 | J195: 0 | L195: 0.1351362704
A196: =A195+Model!$C$48 -> 0.183 | B196: 1 | D196: 0.550193056 | F196: 0.550193056 | H196: 0.1366077074 | I196: 0.1362408089 | J196: 1 | L196: 0.1362408089
A197: =A196+Model!$C$48 -> 0.184 | B197: 1 | D197: 0.5489588994 | F197: 0.5489588994 | H197: 0.1371572834 | I197: 0 | J197: 0 | L197: 0.1362408089
A198: =A197+Model!$C$48 -> 0.185 | B198: 1 | D198: 0.547732872 | F198: 0.547732872 | H198: 0.1377056293 | I198: 0.1373403722 | J198: 1 | L198: 0.1373403722
A199: =A198+Model!$C$48 -> 0.186 | B199: 1 | D199: 0.5465148868 | F199: 0.5465148868 | H199: 0.1382527532 | I199: 0 | J199: 0 | L199: 0.1373403722
A200: =A199+Model!$C$48 -> 0.187 | B200: 1 | D200: 0.5453048583 | F200: 0.5453048583 | H200: 0.138798663 | I200: 0.138435026 | J200: 1 | L200: 0.138435026
A201: =A200+Model!$C$48 -> 0.188 | B201: 1 | D201: 0.5441027018 | F201: 0.5441027018 | H201: 0.1393433668 | I201: 0 | J201: 0 | L201: 0.138435026
A202: =A201+Model!$C$48 -> 0.189 | B202: 1 | D202: 0.5429083342 | F202: 0.5429083342 | H202: 0.1398868723 | I202: 0.1395248342 | J202: 1 | L202: 0.1395248342
A203: =A202+Model!$C$48 -> 0.19 | B203: 1 | D203: 0.5417216734 | F203: 0.5417216734 | H203: 0.1404291873 | I203: 0 | J203: 0 | L203: 0.1395248342
A204: =A203+Model!$C$48 -> 0.191 | B204: 1 | D204: 0.5405426387 | F204: 0.5405426387 | H204: 0.1409703195 | I204: 0.1406098598 | J204: 1 | L204: 0.1406098598
A205: =A204+Model!$C$48 -> 0.192 | B205: 1 | D205: 0.5393711501 | F205: =B205*D205 -> 0.5393711501 | H205: 0.1415102764 | I205: 0 | J205: 0 | L205: 0.1406098598
A206: =A205+Model!$C$48 -> 0.193 | B206: =IF($B$10>0,ERF($B$10/SQRT(A206)),-ERF(-$B$10/SQRT(A206))) -> 1 | D206: =ERF($B$11/SQRT(A206)) -> 0.5382071292 | F206: 0.5382071292 | H206: =0.5*(F206+F205)*(A206-A205)+H205 -> 0.1420490655 | I206: 0.1416901641 | J206: 1 | L206: 0.1416901641
A207: =A206+Model!$C$48 -> 0.194 | B207: 1 | D207: 0.5370504985 | F207: 0.5370504985 | H207: 0.1425866943 | I207: 0 | J207: =IF(J206=1,0,1) -> 0 | L207: 0.1416901641
A208: =A207+Model!$C$48 -> 0.195 | B208: 1 | D208: 0.5359011816 | F208: 0.5359011816 | H208: 0.1431231702 | I208: 0.1427658073 | J208: 1 | L208: 0.1427658073
A209: =A208+Model!$C$48 -> 0.196 | B209: 1 | D209: 0.5347591032 | F209: 0.5347591032 | H209: 0.1436585003 | I209: =(I207+((A209-A208)/3)*(4*F207+2*F208))*J209 -> 0 | J209: 0 | L209: =IF(J209=1,I209,I208) -> 0.1427658073
... 805 more rows

Sheet pS4 (hidden)
A10: a | B10: =(Results!$B$9-Model!$G$48)/(SQRT(4*Model!$G$50*Results!B$11)) -> 2.286026108
A11: b | B11: =(Results!$B$10-Model!$G$49)/(SQRT(4*Model!$G$50*Results!B$11)) -> 0.2286026108
A12: t | B12: erf(a/sqrt(t)) | D12: erf(b/sqrt(t)) | F12: integrand | H12: trapezoidal integral O(h^2) | I12: Simpson integral O(h^4) | J12: kount | L12: Simpson total Sum
A13: 0 | B13: 1 | D13: 1 | F13: =B13*D13 -> 1 | H13: 0 | I13: 0
A14: =Model!$C$48 -> 0.001 | B14: =IF($B$10>0,ERF($B$10/SQRT(A14)),-ERF(-$B$10/SQRT(A14))) -> 1 | D14: =IF($B$11>0,ERF($B$11/SQRT(A14)),-ERF(-$B$11/SQRT(A14))) -> 1 | F14: 1 | H14: =0.5*(F14+F13)*(A14-A13)+H13 -> 0.001 | J14: 1
A15: =A14+Model!$C$48 -> 0.002 | B15: 1 | D15: 1 | F15: 1 | H15: 0.002 | J15: =IF(J14=1,0,1) -> 0
A16: =A15+Model!$C$48 -> 0.003 | B16: 1 | D16: 0.9999999964 | F16: 0.9999999964 | H16: 0.002999999998 | I16: =(I13+((A16-A15)/3)*(F13+4*F14+2*F15))*J16 -> 0.002333333333 | J16: 1 | L16: =IF(J16=1,I16,I15) -> 0.002333333333
A17: =A16+Model!$C$48 -> 0.004 | B17: 1 | D17: 0.9999996807 | F17: 0.9999996807 | H17: 0.003999999837 | I17: =(I15+((A17-A16)/3)*(4*F15+2*F16))*J17 -> 0 | J17: 0 | L17: =IF(J17=1,I17,I16) -> 0.002333333333
A18: =A17+Model!$C$48 -> 0.005 | B18: 1 | D18: 0.9999951703 | F18: 0.9999951703 | H18: 0.004999997262 | I18: 0.004333333116 | J18: 1 | L18: 0.004333333116
A19: =A18+Model!$C$48 -> 0.006 | B19: 1 | D19: 0.9999700299 | F19: 0.9999700299 | H19: 0.005999979862 | I19: 0 | J19: 0 | L19: 0.004333333116
A20: =A19+Model!$C$48 -> 0.007 | B20: 1 | D20: 0.9998884956 | F20: 0.9998884956 | H20: 0.006999909125 | I20: 0.006333306696 | J20: 1 | L20: 0.006333306696
A21: =A20+Model!$C$48 -> 0.008 | B21: 1 | D21: 0.9996991008 | F21: 0.9996991008 | H21: 0.007999702923 | I21: 0 | J21: 0 | L21: 0.006333306696
A22: =A21+Model!$C$48 -> 0.009 | B22: 1 | D22: 0.9993451269 | F22: 0.9993451269 | H22: 0.008999225037 | I22: 0.008332957424 | J22: 1 | L22: 0.008332957424
A23: =A22+Model!$C$48 -> 0.01 | B23: 1 | D23: 0.9987747204 | F23: 0.9987747204 | H23: 0.009998284961 | I23: 0 | J23: 0 | L23: 0.008332957424
A24: =A23+Model!$C$48 -> 0.011 | B24: 1 | D24: 0.9979471439 | F24: 0.9979471439 | H24: 0.01099664589 | I24: 0.01033126741 | J24: 1 | L24: 0.01033126741
A25: =A24+Model!$C$48 -> 0.012 | B25: 1 | D25: 0.996835063 | F25: 0.996835063 | H25: 0.011994037 | I25: 0 | J25: 0 | L25: 0.01033126741
A26: =A25+Model!$C$48 -> 0.013 | B26: 1 | D26: 0.9954241174 | F26: 0.9954241174 | H26: 0.01299016659 | I26: 0.01232642031 | J26: 1 | L26: 0.01232642031
A27: =A26+Model!$C$48 -> 0.014 | B27: 1 | D27: 0.9937110701 | F27: 0.9937110701 | H27: 0.01398473418 | I27: 0 | J27: 0 | L27: 0.01232642031
A28: =A27+Model!$C$48 -> 0.015 | B28: 1 | D28: 0.9917014575 | F28: 0.9917014575 | H28: 0.01497744044 | I28: 0.01431612651 | J28: 1 | L28: 0.01431612651
A29: =A28+Model!$C$48 -> 0.016 | B29: 1 | D29: 0.9894072717 | F29: 0.9894072717 | H29: 0.01596799481 | I29: 0 | J29: 0 | L29: 0.01431612651
A30: =A29+Model!$C$48 -> 0.017 | B30: 1 | D30: 0.9868449299 | F30: 0.9868449299 | H30: 0.01695612091 | I30: 0.01629799997 | J30: 1 | L30: 0.01629799997
A31: =A30+Model!$C$48 -> 0.018 | B31: 1 | D31: 0.9840336177 | F31: 0.9840336177 | H31: 0.01794156018 | I31: 0 | J31: 0 | L31: 0.01629799997
A32: =A31+Model!$C$48 -> 0.019 | B32: 1 | D32: 0.9809940016 | F32: 0.9809940016 | H32: 0.01892407399 | I32: 0.01826981562 | J32: 1 | L32: 0.01826981562
A33: =A32+Model!$C$48 -> 0.02 | B33: 1 | D33: 0.9777472687 | F33: 0.9777472687 | H33: 0.01990344463 | I33: 0 | J33: 0 | L33: 0.01826981562
A34: =A33+Model!$C$48 -> 0.021 | B34: 1 | D34: 0.9743144356 | F34: 0.9743144356 | H34: 0.02087947548 | I34: 0.02022963913 | J34: 1 | L34: 0.02022963913
A35: =A34+Model!$C$48 -> 0.022 | B35: 1 | D35: 0.9707158702 | F35: 0.9707158702 | H35: 0.02185199063 | I35: 0 | J35: 0 | L35: 0.02022963913
A36: =A35+Model!$C$48 -> 0.023 | B36: 1 | D36: 0.9669709786 | F36: 0.9669709786 | H36: 0.02282083406 | I36: 0.02217586896 | J36: 1 | L36: 0.02217586896
A37: =A36+Model!$C$48 -> 0.024 | B37: 1 | D37: 0.9630980128 | F37: 0.9630980128 | H37: 0.02378586855 | I37: 0 | J37: 0 | L37: 0.02217586896
A38: =A37+Model!$C$48 -> 0.025 | B38: 1 | D38: 0.9591139691 | F38: 0.9591139691 | H38: 0.02474697454 | I38: 0.02410722894 | J38: 1 | L38: 0.02410722894
A39: =A38+Model!$C$48 -> 0.026 | B39: 1 | D39: 0.9550345507 | F39: 0.9550345507 | H39: 0.0257040488 | I39: 0 | J39: 0 | L39: 0.02410722894
A40: =A39+Model!$C$48 -> 0.027 | B40: 1 | D40: 0.9508741749 | F40: 0.9508741749 | H40: 0.02665700317 | I40: 0.02602273727 | J40: 1 | L40: 0.02602273727
A41: =A40+Model!$C$48 -> 0.028 | B41: 1 | D41: 0.94664601 | F41: 0.94664601 | H41: 0.02760576326 | I41: 0 | J41: 0 | L41: 0.02602273727
A42: =A41+Model!$C$48 -> 0.029 | B42: 1 | D42: 0.9423620332 | F42: 0.9423620332 | H42: 0.02855026728 | I42: 0.02792166684 | J42: 1 | L42: 0.02792166684
A43: =A42+Model!$C$48 -> 0.03 | B43: 1 | D43: 0.9380330987 | F43: 0.9380330987 | H43: 0.02949046485 | I43: 0 | J43: 0 | L43: 0.02792166684
A44: =A43+Model!$C$48 -> 0.031 | B44: 1 | D44: 0.933669013 | F44: 0.933669013 | H44: 0.0304263159 | I44: 0.02980350495 | J44: 1 | L44: 0.02980350495
A45: =A44+Model!$C$48 -> 0.032 | B45: 1 | D45: 0.9292786123 | F45: 0.9292786123 | H45: 0.03135778972 | I45: 0 | J45: 0 | L45: 0.02980350495
A46: =A45+Model!$C$48 -> 0.033 | B46: 1 | D46: 0.9248698388 | F46: 0.9248698388 | H46: 0.03228486394 | I46: 0.03166791604 | J46: 1 | L46: 0.03166791604
A47: =A46+Model!$C$48 -> 0.034 | B47: 1 | D47: 0.9204498156 | F47: 0.9204498156 | H47: 0.03320752377 | I47: 0 | J47: 0 | L47: 0.03166791604
A48: =A47+Model!$C$48 -> 0.035 | B48: 1 | D48: 0.9160249174 | F48: 0.9160249174 | H48: 0.03412576113 | I48: 0.03351470904 | J48: 1 | L48: 0.03351470904
A49: =A48+Model!$C$48 -> 0.036 | B49: 1 | D49: 0.9116008378 | F49: 0.9116008378 | H49: 0.03503957401 | I49: 0 | J49: 0 | L49: 0.03351470904
A50: =A49+Model!$C$48 -> 0.037 | B50: 1 | D50: 0.9071826512 | F50: 0.9071826512 | H50: 0.03594896576 | I50: 0.03534380949 | J50: 1 | L50: 0.03534380949
A51: =A50+Model!$C$48 -> 0.038 | B51: 1 | D51: 0.9027748709 | F51: 0.9027748709 | H51: 0.03685394452 | I51: 0 | J51: 0 | L51: 0.03534380949
A52: =A51+Model!$C$48 -> 0.039 | B52: 1 | D52: 0.8983815021 | F52: 0.8983815021 | H52: 0.0377545227 | I52: 0.03715523627 | J52: 1 | L52: 0.03715523627
A53: =A52+Model!$C$48 -> 0.04 | B53: 1 | D53: 0.8940060908 | F53: 0.8940060908 | H53: 0.0386507165 | I53: 0 | J53: 0 | L53: 0.03715523627
A54: =A53+Model!$C$48 -> 0.041 | B54: 1 | D54: 0.889651768 | F54: 0.889651768 | H54: 0.03954254543 | I54: 0.03894908233 | J54: 1 | L54: 0.03894908233
A55: =A54+Model!$C$48 -> 0.042 | B55: 1 | D55: 0.8853212907 | F55: 0.8853212907 | H55: 0.04043003196 | I55: 0 | J55: 0 | L55: 0.03894908233
A56: =A55+Model!$C$48 -> 0.043 | B56: 1 | D56: 0.8810170783 | F56: 0.8810170783 | H56: 0.04131320114 | I56: 0.04072549888 | J56: 1 | L56: 0.04072549888
A57: =A56+Model!$C$48 -> 0.044 | B57: 1 | D57: 0.8767412464 | F57: 0.8767412464 | H57: 0.04219208031 | I57: 0 | J57: 0 | L57: 0.04072549888
A58: =A57+Model!$C$48 -> 0.045 | B58: 1 | D58: 0.8724956366 | F58: 0.8724956366 | H58: 0.04306669875 | I58: 0.04248468249 | J58: 1 | L58: 0.04248468249
A59: =A58+Model!$C$48 -> 0.046 | B59: 1 | D59: 0.8682818444 | F59: 0.8682818444 | H59: 0.04393708749 | I59: 0 | J59: 0 | L59: 0.04248468249
A60: =A59+Model!$C$48 -> 0.047 | B60: 1 | D60: 0.8641012437 | F60: 0.8641012437 | H60: 0.04480327903 | I60: 0.04422686456 | J60: 1 | L60: 0.04422686456
A61: =A60+Model!$C$48 -> 0.048 | B61: 1 | D61: 0.8599550091 | F61: 0.8599550091 | H61: 0.04566530716 | I61: 0 | J61: 0 | L61: 0.04422686456
A62: =A61+Model!$C$48 -> 0.049 | B62: 1 | D62: 0.8558441361 | F62: 0.8558441361 | H62: 0.04652320673 | I62: 0.0459523029 | J62: 1 | L62: 0.0459523029
A63: =A62+Model!$C$48 -> 0.05 | B63: 1 | D63: 0.8517694597 | F63: 0.8517694597 | H63: 0.04737701353 | I63: 0 | J63: 0 | L63: 0.0459523029
A64: =A63+Model!$C$48 -> 0.051 | B64: 1 | D64: 0.8477316703 | F64: 0.8477316703 | H64: 0.04822676409 | I64: 0.04766127472 | J64: 1 | L64: 0.04766127472
A65: =A64+Model!$C$48 -> 0.052 | B65: 1 | D65: 0.8437313289 | F65: 0.8437313289 | H65: 0.04907249559 | I65: 0 | J65: 0 | L65: 0.04766127472
A66: =A65+Model!$C$48 -> 0.053 | B66: 1 | D66: 0.8397688806 | F66: 0.8397688806 | H66: 0.0499142457 | I66: 0.04935407116 | J66: 1 | L66: 0.04935407116
A67: =A66+Model!$C$48 -> 0.054 | B67: 1 | D67: 0.8358446663 | F67: 0.8358446663 | H67: 0.05075205247 | I67: 0 | J67: 0 | L67: 0.04935407116
A68: =A67+Model!$C$48 -> 0.055 | B68: 1 | D68: 0.8319589338 | F68: 0.8319589338 | H68: 0.05158595427 | I68: 0.05103099278 | J68: 1 | L68: 0.05103099278
A69: =A68+Model!$C$48 -> 0.056 | B69: 1 | D69: 0.8281118478 | F69: 0.8281118478 | H69: 0.05241598966 | I69: 0 | J69: 0 | L69: 0.05103099278
A70: =A69+Model!$C$48 -> 0.057 | B70: 1 | D70: 0.8243034983 | F70: 0.8243034983 | H70: 0.05324219734 | I70: 0.05269234593 | J70: 1 | L70: 0.05269234593
A71: =A70+Model!$C$48 -> 0.058 | B71: 1 | D71: 0.8205339092 | F71: 0.8205339092 | H71: 0.05406461604 | I71: 0 | J71: 0 | L71: 0.05269234593
A72: =A71+Model!$C$48 -> 0.059 | B72: 1 | D72: 0.8168030451 | F72: 0.8168030451 | H72: 0.05488328452 | I72: 0.05433843986 | J72: 1 | L72: 0.05433843986
A73: =A72+Model!$C$48 -> 0.06 | B73: 1 | D73: 0.813110818 | F73: 0.813110818 | H73: 0.05569824145 | I73: 0 | J73: 0 | L73: 0.05433843986
A74: =A73+Model!$C$48 -> 0.061 | B74: 1 | D74: 0.8094570931 | F74: 0.8094570931 | H74: 0.0565095254 | I74: 0.05596958447 | J74: 1 | L74: 0.05596958447
A75: =A74+Model!$C$48 -> 0.062 | B75: 1 | D75: 0.8058416941 | F75: 0.8058416941 | H75: 0.0573171748 | I75: 0 | J75: 0 | L75: 0.05596958447
A76: =A75+Model!$C$48 -> 0.063 | B76: 1 | D76: 0.802264408 | F76: 0.802264408 | H76: 0.05812122785 | I76: 0.05758608839 | J76: 1 | L76: 0.05758608839
A77: =A76+Model!$C$48 -> 0.064 | B77: 1 | D77: 0.7987249895 | F77: =B77*D77 -> 0.7987249895 | H77: 0.05892172255 | I77: 0 | J77: 0 | L77: 0.05758608839
A78: =A77+Model!$C$48 -> 0.065 | B78: =IF($B$10>0,ERF($B$10/SQRT(A78)),-ERF(-$B$10/SQRT(A78))) -> 1 | D78: =IF($B$11>0,ERF($B$11/SQRT(A78)),-ERF(-$B$11/SQRT(A78))) -> 0.7952231649 | F78: 0.7952231649 | H78: =0.5*(F78+F77)*(A78-A77)+H77 -> 0.05971869662 | I78: 0.05918825759 | J78: 1 | L78: 0.05918825759
A79: =A78+Model!$C$48 -> 0.066 | B79: 1 | D79: 0.7917586354 | F79: 0.7917586354 | H79: 0.06051218752 | I79: 0 | J79: =IF(J78=1,0,1) -> 0 | L79: 0.05918825759
A80: =A79+Model!$C$48 -> 0.067 | B80: 1 | D80: 0.7883310805 | F80: 0.7883310805 | H80: 0.06130223238 | I80: 0.06077639424 | J80: 1 | L80: 0.06077639424
A81: =A80+Model!$C$48 -> 0.068 | B81: 1 | D81: 0.7849401609 | F81: 0.7849401609 | H81: 0.062088868 | I81: =(I79+((A81-A80)/3)*(4*F79+2*F80))*J81 -> 0 | J81: 0 | L81: =IF(J81=1,I81,I80) -> 0.06077639424
A82: =A81+Model!$C$48 -> 0.069 | B82: 1 | D82: 0.7815855208 | F82: 0.7815855208 | H82: 0.06287213084 | I82: 0.06235079578 | J82: 1 | L82: 0.06235079578
A83: =A82+Model!$C$48 -> 0.07 | B83: 1 | D83: 0.7782667905 | F83: 0.7782667905 | H83: 0.063652057 | I83: 0 | J83: 0 | L83: 0.06235079578
A84: =A83+Model!$C$48 -> 0.071 | B84: 1 | D84: 0.7749835884 | F84: 0.7749835884 | H84: 0.06442868219 | I84: 0.06391175434 | J84: 1 | L84: 0.06391175434
A85: =A84+Model!$C$48 -> 0.072 | B85: 1 | D85: 0.771735523 | F85: 0.771735523 | H85: 0.06520204174 | I85: 0 | J85: 0 | L85: 0.06391175434
A86: =A85+Model!$C$48 -> 0.073 | B86: 1 | D86: 0.7685221942 | F86: 0.7685221942 | H86: 0.0659721706 | I86: 0.06545955614 | J86: 1 | L86: 0.06545955614
A87: =A86+Model!$C$48 -> 0.074 | B87: 1 | D87: 0.7653431956 | F87: 0.7653431956 | H87: 0.0667391033 | I87: 0 | J87: 0 | L87: 0.06545955614
A88: =A87+Model!$C$48 -> 0.075 | B88: 1 | D88: 0.7621981149 | F88: 0.7621981149 | H88: 0.06750287395 | I88: 0.06699448119 | J88: 1 | L88: 0.06699448119
A89: =A88+Model!$C$48 -> 0.076 | B89: 1 | D89: 0.759086536 | F89: 0.759086536 | H89: 0.06826351628 | I89: 0 | J89: 0 | L89: 0.06699448119
A90: =A89+Model!$C$48 -> 0.077 | B90: 1 | D90: 0.7560080397 | F90: 0.7560080397 | H90: 0.06902106357 | I90: 0.06851680304 | J90: 1 | L90: 0.06851680304
A91: =A90+Model!$C$48 -> 0.078 | B91: 1 | D91: 0.7529622047 | F91: 0.7529622047 | H91: 0.06977554869 | I91: 0 | J91: 0 | L91: 0.06851680304
A92: =A91+Model!$C$48 -> 0.079 | B92: 1 | D92: 0.7499486086 | F92: 0.7499486086 | H92: 0.0705270041 | I92: 0.07002678856 | J92: 1 | L92: 0.07002678856
A93: =A92+Model!$C$48 -> 0.08 | B93: 1 | D93: 0.7469668287 | F93: 0.7469668287 | H93: 0.07127546181 | I93: 0 | J93: 0 | L93: 0.07002678856
A94: =A93+Model!$C$48 -> 0.081 | B94: 1 | D94: 0.7440164427 | F94: 0.7440164427 | H94: 0.07202095345 | I94: 0.07152469792 | J94: 1 | L94: 0.07152469792
A95: =A94+Model!$C$48 -> 0.082 | B95: 1 | D95: 0.7410970293 | F95: 0.7410970293 | H95: 0.07276351019 | I95: 0 | J95: 0 | L95: 0.07152469792
A96: =A95+Model!$C$48 -> 0.083 | B96: 1 | D96: 0.7382081687 | F96: 0.7382081687 | H96: 0.07350316279 | I96: 0.07301078453 | J96: 1 | L96: 0.07301078453
A97: =A96+Model!$C$48 -> 0.084 | B97: 1 | D97: 0.7353494433 | F97: 0.7353494433 | H97: 0.07423994159 | I97: 0 | J97: 0 | L97: 0.07301078453
A98: =A97+Model!$C$48 -> 0.085 | B98: 1 | D98: 0.7325204382 | F98: 0.7325204382 | H98: 0.07497387653 | I98: 0.07448529505 | J98: 1 | L98: 0.07448529505
A99: =A98+Model!$C$48 -> 0.086 | B99: 1 | D99: 0.7297207411 | F99: 0.7297207411 | H99: 0.07570499712 | I99: 0 | J99: 0 | L99: 0.07448529505
A100: =A99+Model!$C$48 -> 0.087 | B100: 1 | D100: 0.7269499434 | F100: 0.7269499434 | H100: 0.07643333246 | I100: 0.07594846947 | J100: 1 | L100: 0.07594846947
A101: =A100+Model!$C$48 -> 0.088 | B101: 1 | D101: 0.7242076397 | F101: 0.7242076397 | H101: 0.07715891126 | I101: 0 | J101: 0 | L101: 0.07594846947
A102: =A101+Model!$C$48 -> 0.089 | B102: 1 | D102: 0.721493429 | F102: 0.721493429 | H102: 0.07788176179 | I102: 0.07740054115 | J102: 1 | L102: 0.07740054115
A103: =A102+Model!$C$48 -> 0.09 | B103: 1 | D103: 0.7188069138 | F103: 0.7188069138 | H103: 0.07860191196 | I103: 0 | J103: 0 | L103: 0.07740054115
A104: =A103+Model!$C$48 -> 0.091 | B104: 1 | D104: 0.7161477015 | F104: 0.7161477015 | H104: 0.07931938927 | I104: 0.078841737 | J104: 1 | L104: 0.078841737
A105: =A104+Model!$C$48 -> 0.092 | B105: 1 | D105: 0.7135154036 | F105: 0.7135154036 | H105: 0.08003422082 | I105: 0 | J105: 0 | L105: 0.078841737
A106: =A105+Model!$C$48 -> 0.093 | B106: 1 | D106: 0.7109096364 | F106: 0.7109096364 | H106: 0.08074643334 | I106: 0.08027227754 | J106: 1 | L106: 0.08027227754
A107: =A106+Model!$C$48 -> 0.094 | B107: 1 | D107: 0.708330021 | F107: 0.708330021 | H107: 0.08145605317 | I107: 0 | J107: 0 | L107: 0.08027227754
A108: =A107+Model!$C$48 -> 0.095 | B108: 1 | D108: 0.7057761832 | F108: 0.7057761832 | H108: 0.08216310627 | I108: 0.08169237706 | J108: 1 | L108: 0.08169237706
A109: =A108+Model!$C$48 -> 0.096 | B109: 1 | D109: 0.703247754 | F109: 0.703247754 | H109: 0.08286761824 | I109: 0 | J109: 0 | L109: 0.08169237706
A110: =A109+Model!$C$48 -> 0.097 | B110: 1 | D110: 0.7007443693 | F110: 0.7007443693 | H110: 0.0835696143 | I110: 0.08310224381 | J110: 1 | L110: 0.08310224381
A111: =A110+Model!$C$48 -> 0.098 | B111: 1 | D111: 0.6982656701 | F111: 0.6982656701 | H111: 0.08426911932 | I111: 0 | J111: 0 | L111: 0.08310224381
A112: =A111+Model!$C$48 -> 0.099 | B112: 1 | D112: 0.6958113024 | F112: 0.6958113024 | H112: 0.08496615781 | I112: 0.08450208008 | J112: 1 | L112: 0.08450208008
A113: =A112+Model!$C$48 -> 0.1 | B113: 1 | D113: 0.6933809174 | F113: 0.6933809174 | H113: 0.08566075392 | I113: 0 | J113: 0 | L113: 0.08450208008
A114: =A113+Model!$C$48 -> 0.101 | B114: 1 | D114: 0.6909741715 | F114: 0.6909741715 | H114: 0.08635293146 | I114: 0.08589208243 | J114: 1 | L114: 0.08589208243
A115: =A114+Model!$C$48 -> 0.102 | B115: 1 | D115: 0.6885907264 | F115: 0.6885907264 | H115: 0.08704271391 | I115: 0 | J115: 0 | L115: 0.08589208243
A116: =A115+Model!$C$48 -> 0.103 | B116: 1 | D116: 0.6862302486 | F116: 0.6862302486 | H116: 0.0877301244 | I116: 0.08727244181 | J116: 1 | L116: 0.08727244181
A117: =A116+Model!$C$48 -> 0.104 | B117: 1 | D117: 0.6838924099 | F117: 0.6838924099 | H117: 0.08841518573 | I117: 0 | J117: 0 | L117: 0.08727244181
A118: =A117+Model!$C$48 -> 0.105 | B118: 1 | D118: 0.6815768874 | F118: 0.6815768874 | H118: 0.08909792038 | I118: 0.08864334375 | J118: 1 | L118: 0.08864334375
A119: =A118+Model!$C$48 -> 0.106 | B119: 1 | D119: 0.6792833629 | F119: 0.6792833629 | H119: 0.0897783505 | I119: 0 | J119: 0 | L119: 0.08864334375
A120: =A119+Model!$C$48 -> 0.107 | B120: 1 | D120: 0.6770115236 | F120: 0.6770115236 | H120: 0.09045649795 | I120: 0.09000496851 | J120: 1 | L120: 0.09000496851
A121: =A120+Model!$C$48 -> 0.108 | B121: 1 | D121: 0.6747610616 | F121: 0.6747610616 | H121: 0.09113238424 | I121: 0 | J121: 0 | L121: 0.09000496851
A122: =A121+Model!$C$48 -> 0.109 | B122: 1 | D122: 0.6725316738 | F122: 0.6725316738 | H122: 0.09180603061 | I122: 0.09135749125 | J122: 1 | L122: 0.09135749125
A123: =A122+Model!$C$48 -> 0.11 | B123: 1 | D123: 0.6703230624 | F123: 0.6703230624 | H123: 0.09247745797 | I123: 0 | J123: 0 | L123: 0.09135749125
A124: =A123+Model!$C$48 -> 0.111 | B124: 1 | D124: 0.668134934 | F124: 0.668134934 | H124: 0.09314668697 | I124: 0.09270108219 | J124: 1 | L124: 0.09270108219
A125: =A124+Model!$C$48 -> 0.112 | B125: 1 | D125: 0.6659670003 | F125: 0.6659670003 | H125: 0.09381373794 | I125: 0 | J125: 0 | L125: 0.09270108219
A126: =A125+Model!$C$48 -> 0.113 | B126: 1 | D126: 0.6638189779 | F126: 0.6638189779 | H126: 0.09447863093 | I126: 0.09403590677 | J126: 1 | L126: 0.09403590677
A127: =A126+Model!$C$48 -> 0.114 | B127: 1 | D127: 0.6616905877 | F127: 0.6616905877 | H127: 0.09514138571 | I127: 0 | J127: 0 | L127: 0.09403590677
A128: =A127+Model!$C$48 -> 0.115 | B128: 1 | D128: 0.6595815556 | F128: 0.6595815556 | H128: 0.09580202178 | I128: 0.0953621258 | J128: 1 | L128: 0.0953621258
A129: =A128+Model!$C$48 -> 0.116 | B129: 1 | D129: 0.6574916118 | F129: 0.6574916118 | H129: 0.09646055837 | I129: 0 | J129: 0 | L129: 0.0953621258
A130: =A129+Model!$C$48 -> 0.117 | B130: 1 | D130: 0.6554204913 | F130: 0.6554204913 | H130: 0.09711701442 | I130: 0.09667989561 | J130: 1 | L130: 0.09667989561
A131: =A130+Model!$C$48 -> 0.118 | B131: 1 | D131: 0.6533679333 | F131: 0.6533679333 | H131: 0.09777140863 | I131: 0 | J131: 0 | L131: 0.09667989561
A132: =A131+Model!$C$48 -> 0.119 | B132: 1 | D132: 0.6513336815 | F132: 0.6513336815 | H132: 0.09842375944 | I132: 0.09798936822 | J132: 1 | L132: 0.09798936822
A133: =A132+Model!$C$48 -> 0.12 | B133: 1 | D133: 0.649317484 | F133: 0.649317484 | H133: 0.09907408502 | I133: 0 | J133: 0 | L133: 0.09798936822
A134: =A133+Model!$C$48 -> 0.121 | B134: 1 | D134: 0.6473190929 | F134: 0.6473190929 | H134: 0.09972240331 | I134: 0.09929069145 | J134: 1 | L134: 0.09929069145
A135: =A134+Model!$C$48 -> 0.122 | B135: 1 | D135: 0.6453382647 | F135: 0.6453382647 | H135: 0.100368732 | I135: 0 | J135: 0 | L135: 0.09929069145
A136: =A135+Model!$C$48 -> 0.123 | B136: 1 | D136: 0.64337476 | F136: 0.64337476 | H136: 0.1010130885 | I136: 0.1005840091 | J136: 1 | L136: 0.1005840091
A137: =A136+Model!$C$48 -> 0.124 | B137: 1 | D137: 0.6414283434 | F137: 0.6414283434 | H137: 0.1016554901 | I137: 0 | J137: 0 | L137: 0.1005840091
A138: =A137+Model!$C$48 -> 0.125 | B138: 1 | D138: 0.6394987835 | F138: 0.6394987835 | H138: 0.1022959536 | I138: 0.101869461 | J138: 1 | L138: 0.101869461
A139: =A138+Model!$C$48 -> 0.126 | B139: 1 | D139: 0.6375858527 | F139: 0.6375858527 | H139: 0.1029344959 | I139: 0 | J139: 0 | L139: 0.101869461
A140: =A139+Model!$C$48 -> 0.127 | B140: 1 | D140: 0.6356893275 | F140: 0.6356893275 | H140: 0.1035711335 | I140: 0.1031471833 | J140: 1 | L140: 0.1031471833
A141: =A140+Model!$C$48 -> 0.128 | B141: 1 | D141: 0.6338089879 | F141: =B141*D141 -> 0.6338089879 | H141: 0.1042058827 | I141: 0 | J141: 0 | L141: 0.1031471833
A142: =A141+Model!$C$48 -> 0.129 | B142: =IF($B$10>0,ERF($B$10/SQRT(A142)),-ERF(-$B$10/SQRT(A142))) -> 1 | D142: =IF($B$11>0,ERF($B$11/SQRT(A142)),-ERF(-$B$11/SQRT(A142))) -> 0.6319446178 | F142: 0.6319446178 | H142: =0.5*(F142+F141)*(A142-A141)+H141 -> 0.1048387595 | I142: 0.1044173084 | J142: 1 | L142: 0.1044173084
A143: =A142+Model!$C$48 -> 0.13 | B143: 1 | D143: 0.6300960047 | F143: 0.6300960047 | H143: 0.1054697798 | I143: 0 | J143: =IF(J142=1,0,1) -> 0 | L143: 0.1044173084
A144: =A143+Model!$C$48 -> 0.131 | B144: 1 | D144: 0.6282629397 | F144: 0.6282629397 | H144: 0.1060989593 | I144: 0.1056799652 | J144: 1 | L144: 0.1056799652
A145: =A144+Model!$C$48 -> 0.132 | B145: 1 | D145: 0.6264452175 | F145: 0.6264452175 | H145: 0.1067263133 | I145: =(I143+((A145-A144)/3)*(4*F143+2*F144))*J145 -> 0 | J145: 0 | L145: =IF(J145=1,I145,I144) -> 0.1056799652
A146: =A145+Model!$C$48 -> 0.133 | B146: 1 | D146: 0.624642636 | F146: 0.624642636 | H146: 0.1073518573 | I146: 0.1069352793 | J146: 1 | L146: 0.1069352793
A147: =A146+Model!$C$48 -> 0.134 | B147: 1 | D147: 0.6228549968 | F147: 0.6228549968 | H147: 0.1079756061 | I147: 0 | J147: 0 | L147: 0.1069352793
A148: =A147+Model!$C$48 -> 0.135 | B148: 1 | D148: 0.6210821047 | F148: 0.6210821047 | H148: 0.1085975746 | I148: 0.1081833728 | J148: 1 | L148: 0.1081833728
A149: =A148+Model!$C$48 -> 0.136 | B149: 1 | D149: 0.6193237677 | F149: 0.6193237677 | H149: 0.1092177776 | I149: 0 | J149: 0 | L149: 0.1081833728
A150: =A149+Model!$C$48 -> 0.137 | B150: 1 | D150: 0.6175797972 | F150: 0.6175797972 | H150: 0.1098362294 | I150: 0.1094243648 | J150: 1 | L150: 0.1094243648
A151: =A150+Model!$C$48 -> 0.138 | B151: 1 | D151: 0.6158500075 | F151: 0.6158500075 | H151: 0.1104529443 | I151: 0 | J151: 0 | L151: 0.1094243648
A152: =A151+Model!$C$48 -> 0.139 | B152: 1 | D152: 0.6141342163 | F152: 0.6141342163 | H152: 0.1110679364 | I152: 0.1106583712 | J152: 1 | L152: 0.1106583712
A153: =A152+Model!$C$48 -> 0.14 | B153: 1 | D153: 0.6124322441 | F153: 0.6124322441 | H153: 0.1116812196 | I153: 0 | J153: 0 | L153: 0.1106583712
A154: =A153+Model!$C$48 -> 0.141 | B154: 1 | D154: 0.6107439145 | F154: 0.6107439145 | H154: 0.1122928077 | I154: 0.1118855049 | J154: 1 | L154: 0.1118855049
A155: =A154+Model!$C$48 -> 0.142 | B155: 1 | D155: 0.6090690539 | F155: 0.6090690539 | H155: 0.1129027142 | I155: 0 | J155: 0 | L155: 0.1118855049
A156: =A155+Model!$C$48 -> 0.143 | B156: 1 | D156: 0.6074074918 | F156: 0.6074074918 | H156: 0.1135109524 | I156: 0.1131058762 | J156: 1 | L156: 0.1131058762
A157: =A156+Model!$C$48 -> 0.144 | B157: 1 | D157: 0.6057590604 | F157: 0.6057590604 | H157: 0.1141175357 | I157: 0 | J157: 0 | L157: 0.1131058762
A158: =A157+Model!$C$48 -> 0.145 | B158: 1 | D158: 0.6041235945 | F158: 0.6041235945 | H158: 0.114722477 | I158: 0.1143195922 | J158: 1 | L158: 0.1143195922
A159: =A158+Model!$C$48 -> 0.146 | B159: 1 | D159: 0.6025009319 | F159: 0.6025009319 | H159: 0.1153257893 | I159: 0 | J159: 0 | L159: 0.1143195922
A160: =A159+Model!$C$48 -> 0.147 | B160: 1 | D160: 0.6008909128 | F160: 0.6008909128 | H160: 0.1159274852 | I160: 0.1155267576 | J160: 1 | L160: 0.1155267576
A161: =A160+Model!$C$48 -> 0.148 | B161: 1 | D161: 0.5992933803 | F161: 0.5992933803 | H161: 0.1165275774 | I161: 0 | J161: 0 | L161: 0.1155267576
A162: =A161+Model!$C$48 -> 0.149 | B162: 1 | D162: 0.5977081797 | F162: 0.5977081797 | H162: 0.1171260782 | I162: 0.1167274744 | J162: 1 | L162: 0.1167274744
A163: =A162+Model!$C$48 -> 0.15 | B163: 1 | D163: 0.5961351592 | F163: 0.5961351592 | H163: 0.1177229998 | I163: 0 | J163: 0 | L163: 0.1167274744
A164: =A163+Model!$C$48 -> 0.151 | B164: 1 | D164: 0.5945741691 | F164: 0.5945741691 | H164: 0.1183183545 | I164: 0.1179218421 | J164: 1 | L164: 0.1179218421
A165: =A164+Model!$C$48 -> 0.152 | B165: 1 | D165: 0.5930250625 | F165: 0.5930250625 | H165: 0.1189121541 | I165: 0 | J165: 0 | L165: 0.1179218421
A166: =A165+Model!$C$48 -> 0.153 | B166: 1 | D166: 0.5914876945 | F166: 0.5914876945 | H166: 0.1195044105 | I166: 0.1191099577 | J166: 1 | L166: 0.1191099577
A167: =A166+Model!$C$48 -> 0.154 | B167: 1 | D167: 0.5899619227 | F167: 0.5899619227 | H167: 0.1200951353 | I167: 0 | J167: 0 | L167: 0.1191099577
A168: =A167+Model!$C$48 -> 0.155 | B168: 1 | D168: 0.5884476072 | F168: 0.5884476072 | H168: 0.1206843401 | I168: 0.1202919159 | J168: 1 | L168: 0.1202919159
A169: =A168+Model!$C$48 -> 0.156 | B169: 1 | D169: 0.5869446099 | F169: 0.5869446099 | H169: 0.1212720362 | I169: 0 | J169: 0 | L169: 0.1202919159
A170: =A169+Model!$C$48 -> 0.157 | B170: 1 | D170: 0.5854527952 | F170: 0.5854527952 | H170: 0.1218582349 | I170: 0.1214678092 | J170: 1 | L170: 0.1214678092
A171: =A170+Model!$C$48 -> 0.158 | B171: 1 | D171: 0.5839720297 | F171: 0.5839720297 | H171: 0.1224429473 | I171: 0 | J171: 0 | L171: 0.1214678092
A172: =A171+Model!$C$48 -> 0.159 | B172: 1 | D172: 0.5825021818 | F172: 0.5825021818 | H172: 0.1230261844 | I172: 0.1226377276 | J172: 1 | L172: 0.1226377276
A173: =A172+Model!$C$48 -> 0.16 | B173: 1 | D173: 0.5810431223 | F173: 0.5810431223 | H173: 0.123607957 | I173: 0 | J173: 0 | L173: 0.1226377276
A174: =A173+Model!$C$48 -> 0.161 | B174: 1 | D174: 0.579594724 | F174: 0.579594724 | H174: 0.124188276 | I174: 0.1238017592 | J174: 1 | L174: 0.1238017592
A175: =A174+Model!$C$48 -> 0.162 | B175: 1 | D175: 0.5781568615 | F175: 0.5781568615 | H175: 0.1247671518 | I175: 0 | J175: 0 | L175: 0.1238017592
A176: =A175+Model!$C$48 -> 0.163 | B176: 1 | D176: 0.5767294115 | F176: 0.5767294115 | H176: 0.1253445949 | I176: 0.1249599901 | J176: 1 | L176: 0.1249599901
A177: =A176+Model!$C$48 -> 0.164 | B177: 1 | D177: 0.5753122527 | F177: 0.5753122527 | H177: 0.1259206157 | I177: 0 | J177: 0 | L177: 0.1249599901
A178: =A177+Model!$C$48 -> 0.165 | B178: 1 | D178: 0.5739052655 | F178: 0.5739052655 | H178: 0.1264952245 | I178: 0.1261125041 | J178: 1 | L178: 0.1261125041
A179: =A178+Model!$C$48 -> 0.166 | B179: 1 | D179: 0.5725083323 | F179: 0.5725083323 | H179: 0.1270684313 | I179: 0 | J179: 0 | L179: 0.1261125041
A180: =A179+Model!$C$48 -> 0.167 | B180: 1 | D180: 0.5711213373 | F180: 0.5711213373 | H180: 0.1276402461 | I180: 0.1272593834 | J180: 1 | L180: 0.1272593834
A181: =A180+Model!$C$48 -> 0.168 | B181: 1 | D181: 0.5697441665 | F181: 0.5697441665 | H181: 0.1282106789 | I181: 0 | J181: 0 | L181: 0.1272593834
A182: =A181+Model!$C$48 -> 0.169 | B182: 1 | D182: 0.5683767075 | F182: 0.5683767075 | H182: 0.1287797393 | I182: 0.1284007079 | J182: 1 | L182: 0.1284007079
A183: =A182+Model!$C$48 -> 0.17 | B183: 1 | D183: 0.5670188498 | F183: 0.5670188498 | H183: 0.1293474371 | I183: 0 | J183: 0 | L183: 0.1284007079
A184: =A183+Model!$C$48 -> 0.171 | B184: 1 | D184: 0.5656704845 | F184: 0.5656704845 | H184: 0.1299137817 | I184: 0.1295365561 | J184: 1 | L184: 0.1295365561
A185: =A184+Model!$C$48 -> 0.172 | B185: 1 | D185: 0.5643315045 | F185: 0.5643315045 | H185: 0.1304787827 | I185: 0 | J185: 0 | L185: 0.1295365561
A186: =A185+Model!$C$48 -> 0.173 | B186: 1 | D186: 0.5630018041 | F186: 0.5630018041 | H186: 0.1310424494 | I186: 0.1306670044 | J186: 1 | L186: 0.1306670044
A187: =A186+Model!$C$48 -> 0.174 | B187: 1 | D187: 0.5616812793 | F187: 0.5616812793 | H187: 0.1316047909 | I187: 0 | J187: 0 | L187: 0.1306670044
A188: =A187+Model!$C$48 -> 0.175 | B188: 1 | D188: 0.5603698278 | F188: 0.5603698278 | H188: 0.1321658165 | I188: 0.1317921277 | J188: 1 | L188: 0.1317921277
A189: =A188+Model!$C$48 -> 0.176 | B189: 1 | D189: 0.5590673486 | F189: 0.5590673486 | H189: 0.1327255351 | I189: 0 | J189: 0 | L189: 0.1317921277
A190: =A189+Model!$C$48 -> 0.177 | B190: 1 | D190: 0.5577737423 | F190: 0.5577737423 | H190: 0.1332839556 | I190: 0.132911999 | J190: 1 | L190: 0.132911999
A191: =A190+Model!$C$48 -> 0.178 | B191: 1 | D191: 0.5564889112 | F191: 0.5564889112 | H191: 0.133841087 | I191: 0 | J191: 0 | L191: 0.132911999
A192: =A191+Model!$C$48 -> 0.179 | B192: 1 | D192: 0.5552127587 | F192: 0.5552127587 | H192: 0.1343969378 | I192: 0.13402669 | J192: 1 | L192: 0.13402669
A193: =A192+Model!$C$48 -> 0.18 | B193: 1 | D193: 0.5539451898 | F193: 0.5539451898 | H193: 0.1349515168 | I193: 0 | J193: 0 | L193: 0.13402669
A194: =A193+Model!$C$48 -> 0.181 | B194: 1 | D194: 0.552686111 | F194: 0.552686111 | H194: 0.1355048324 | I194: 0.1351362704 | J194: 1 | L194: 0.1351362704
A195: =A194+Model!$C$48 -> 0.182 | B195: 1 | D195: 0.55143543 | F195: 0.55143543 | H195: 0.1360568932 | I195: 0 | J195: 0 | L195: 0.1351362704
A196: =A195+Model!$C$48 -> 0.183 | B196: 1 | D196: 0.550193056 | F196: 0.550193056 | H196: 0.1366077074 | I196: 0.1362408089 | J196: 1 | L196: 0.1362408089
A197: =A196+Model!$C$48 -> 0.184 | B197: 1 | D197: 0.5489588994 | F197: 0.5489588994 | H197: 0.1371572834 | I197: 0 | J197: 0 | L197: 0.1362408089
A198: =A197+Model!$C$48 -> 0.185 | B198: 1 | D198: 0.547732872 | F198: 0.547732872 | H198: 0.1377056293 | I198: 0.1373403722 | J198: 1 | L198: 0.1373403722
A199: =A198+Model!$C$48 -> 0.186 | B199: 1 | D199: 0.5465148868 | F199: 0.5465148868 | H199: 0.1382527532 | I199: 0 | J199: 0 | L199: 0.1373403722
A200: =A199+Model!$C$48 -> 0.187 | B200: 1 | D200: 0.5453048583 | F200: 0.5453048583 | H200: 0.138798663 | I200: 0.138435026 | J200: 1 | L200: 0.138435026
A201: =A200+Model!$C$48 -> 0.188 | B201: 1 | D201: 0.5441027018 | F201: 0.5441027018 | H201: 0.1393433668 | I201: 0 | J201: 0 | L201: 0.138435026
A202: =A201+Model!$C$48 -> 0.189 | B202: 1 | D202: 0.5429083342 | F202: 0.5429083342 | H202: 0.1398868723 | I202: 0.1395248342 | J202: 1 | L202: 0.1395248342
A203: =A202+Model!$C$48 -> 0.19 | B203: 1 | D203: 0.5417216734 | F203: 0.5417216734 | H203: 0.1404291873 | I203: 0 | J203: 0 | L203: 0.1395248342
A204: =A203+Model!$C$48 -> 0.191 | B204: 1 | D204: 0.5405426387 | F204: 0.5405426387 | H204: 0.1409703195 | I204: 0.1406098598 | J204: 1 | L204: 0.1406098598
A205: =A204+Model!$C$48 -> 0.192 | B205: 1 | D205: 0.5393711501 | F205: =B205*D205 -> 0.5393711501 | H205: 0.1415102764 | I205: 0 | J205: 0 | L205: 0.1406098598
A206: =A205+Model!$C$48 -> 0.193 | B206: =IF($B$10>0,ERF($B$10/SQRT(A206)),-ERF(-$B$10/SQRT(A206))) -> 1 | D206: =IF($B$11>0,ERF($B$11/SQRT(A206)),-ERF(-$B$11/SQRT(A206))) -> 0.5382071292 | F206: 0.5382071292 | H206: =0.5*(F206+F205)*(A206-A205)+H205 -> 0.1420490655 | I206: 0.1416901641 | J206: 1 | L206: 0.1416901641
A207: =A206+Model!$C$48 -> 0.194 | B207: 1 | D207: 0.5370504985 | F207: 0.5370504985 | H207: 0.1425866943 | I207: 0 | J207: =IF(J206=1,0,1) -> 0 | L207: 0.1416901641
A208: =A207+Model!$C$48 -> 0.195 | B208: 1 | D208: 0.5359011816 | F208: 0.5359011816 | H208: 0.1431231702 | I208: 0.1427658073 | J208: 1 | L208: 0.1427658073
A209: =A208+Model!$C$48 -> 0.196 | B209: 1 | D209: 0.5347591032 | F209: 0.5347591032 | H209: 0.1436585003 | I209: =(I207+((A209-A208)/3)*(4*F207+2*F208))*J209 -> 0 | J209: 0 | L209: =IF(J209=1,I209,I208) -> 0.1427658073
... 805 more rows
